Cogmind - Beta 17.1 @@@ ROGUE MODE // 2026.09.04 @ 01:12:43 Player: KURIIRI Result: Self-destructed Performance ------------- Evolutions (8) 4000 Regions Visited (25) 5000 Robots Destroyed (335) 1675 Value Destroyed (18738) 18738 Prototype IDs (30) 600 Alien Tech Used (1) 200 Bonus (35156) 35156 TOTAL SCORE: 65369 Bonus ------- High Alert Combat Kills 815 Follower Combat Kills 7430 Prayed to X0-1V1 5000 Major X0-1V1 Interference 12800 Entered Garrisons 1600 Used RIF Installer 5000 Network Hubs Disabled 600 Built Enhanced Grunts 300 A7 Reached Mainframe 300 Met R17 at Cetus 500 Met R17 at Research 2000 Friendly Fire -1189 Cogmind --------- Core Integrity 1400/1500 Matter 607/700 Energy 128/430 System Corruption 22% Temperature Cool (0) Movement Rolling (120) Ox2 Location -2/Research Parts ------- > --- POWER (2) -------- Light Particle Reactor Quantum Reactor > --- PROPULSION (4) --- Centrium Wheel Centrium Wheel Centrium Wheel Centrium Wheel > --- UTILITY (14) ----- Huge Storage Unit Advanced Targeting Computer Advanced Target Analyzer Advanced Weapon Cycler Heavy Reactive Plating Improved Remote Force Field Relay Coupler [NC] (23) Relay Coupler [Grunt] (41) Relay Coupler [Grunt] (31) Relay Coupler [Sentry] (7) Relay Coupler [Specialist] (79) Relay Coupler [Hunter] (73) > --- WEAPON (4) ------- Enhanced Quantum Rifle Enhanced Quantum Rifle Enhanced Quantum Rifle Advanced Remote Datajack > --- INVENTORY (25) --- Compact Wheel Advanced Power Amplifier Advanced Heat Sink Experimental Matter Compressor (203) Advanced Signal Interpreter Advanced Weapon Cycler Centrium Medium Armor Plating Experimental Thermal Shield Advanced Remote Force Field Relay Coupler [NC] (46) Relay Coupler [NC] (45) Relay Coupler [Sentry] (34) Relay Coupler [Hunter] (31) Relay Coupler [Proto] (21) Relay Coupler [Proto] (21) Relay Coupler [Proto] (21) Relay Coupler [Proto] (21) Relay Coupler [Proto] (21) X0-1V1's Piety Tracker Enhanced Quantum Rifle Compact HERF Cannon Compact HERF Cannon Enhanced Nova Cannon Gamma Bomb Array Peak State ------------ > --- POWER ------------ Quantum Reactor Quantum Reactor > --- PROPULSION ------- Centrium Wheel Centrium Wheel Centrium Wheel Centrium Wheel > --- UTILITY ---------- Huge Storage Unit Advanced Targeting Computer Advanced Weapon Cycler Centrium Medium Armor Plating Experimental Thermal Shield Advanced Remote Force Field Relay Coupler [NC] Relay Coupler [Grunt] Relay Coupler [Grunt] Relay Coupler [Sentry] Relay Coupler [Specialist] Relay Coupler [Hunter] Relay Coupler [Hunter] X0-1V1's Piety Tracker > --- WEAPON ----------- Compact HERF Cannon Heavy Linear Accelerator Advanced Remote Datajack > --- INVENTORY -------- Centrium Wheel Advanced Power Amplifier Improved Matter Compressor Advanced Weapon Cycler Improved Remote Force Field Authchip [R/NC] Relay Coupler [NC] Relay Coupler [NC] Relay Coupler [NC] Relay Coupler [NC] Relay Coupler [Grunt] Relay Coupler [Grunt] Relay Coupler [Sentry] Relay Coupler [Hunter] Relay Coupler [Proto] Relay Coupler [Proto] Relay Coupler [Proto] Relay Coupler [Proto] Relay Coupler [Proto] Relay Coupler [Proto] Heavy Linear Accelerator Gamma Bomb Array Advanced Remote Datajack Improved Plasma Cutter [Rating: 170] Favorites ----------- Power Quantum Reactor Engine Deuterium Engine Power Core Enhanced Nuclear Core Reactor Quantum Reactor Propulsion Armored Huge Wheel Treads Light Treads Leg Aluminum Leg Wheel Armored Huge Wheel Utility Relay Coupler [Sentry] Device X0-1V1's Piety Tracker Storage Huge Storage Unit Processor Advanced Targeting Computer Hackware Relay Coupler [Sentry] Protection Centrium Medium Armor Plating Weapon Heavy Linear Accelerator Energy Gun Medium Laser Energy Cannon Compact HERF Cannon Ballistic Gun Heavy Assault Rifle Ballistic Cannon Heavy Linear Accelerator Launcher Improved Proton Missile Launcher Special Weapon Improved Remote Datajack Impact Weapon Great Maul Slashing Weapon Ripper Special Melee Weapon Improved Datajack Build | -11 -10 -9 -9 -9 -8 -8 -8 -8 -7 -7 -6 -6 -6 -6 -6 -6 -5 -5 -4 -4 -4 -4 -3 -3 -2 ------- Run | Yrd Mat Mat Sto Gar Mat Gar Mat Gar Fac Gar Fac Ext Cet Arc Hub Gar Fac Gar Fac Was Fac Gar Res Gar Res Slots Evolved 16 | . . 2 . . 2 . . . 2 . 2 . . . . . 2 . 2 . . . 2 . 2 Power 1 | . . . . . . . . . . . . . . . . . . . . . . . 1 . . Propulsion 2 | . . 1 . . . . . . . . 1 . . . . . . . . . . . . . . Utility 12 | . . 1 . . 2 . . . 2 . 1 . . . . . 1 . 2 . . . 1 . 2 Weapon 1 | . . . . . . . . . . . . . . . . . 1 . . . . . . . . Parts Attached 213 | 1 13 1 . 10 6 9 3 13 7 2 14 9 2 10 4 20 18 10 4 1 3 9 11 9 24 Power 23 | . 2 . . 1 1 . . 2 1 . 1 1 . 1 . 4 . 2 . . 3 . . 2 2 Engine 5 | . 2 . . 1 1 . . 1 . . . . . . . . . . . . . . . . . Core 7 | . . . . . . . . 1 1 . 1 1 . 1 . 2 . . . . . . . . . Reactor 11 | . . . . . . . . . . . . . . . . 2 . 2 . . 3 . . 2 2 Propulsion 25 | . 4 . . 3 . 2 . 3 . . 1 1 . 1 1 1 2 . . . . . 4 . 2 Treads 14 | . 3 . . 3 . 1 . 3 . . 1 . . 1 1 . . . . . . . . . 1 Leg . | . . . . . . . . . . . . . . . . . . . . . . . . . . Wheel 11 | . 1 . . . . 1 . . . . . 1 . . . 1 2 . . . . . 4 . 1 Hover . | . . . . . . . . . . . . . . . . . . . . . . . . . . Flight . | . . . . . . . . . . . . . . . . . . . . . . . . . . Utility 121 | 1 3 . . 3 4 3 3 5 6 2 7 6 1 6 3 11 12 6 4 1 . 9 5 6 14 Device 30 | 1 1 . . 1 1 1 . 1 1 . 1 1 . 2 1 3 5 1 . 1 . 2 2 . 4 Storage 7 | . 2 . . . . 1 . . . . . . . . . . 2 . . . . . . . 2 Processor 12 | . . . . . . . . 1 1 . 1 1 . . 1 . . 1 1 . . . 2 . 3 Hackware 56 | . . . . . 2 . 2 1 4 2 5 1 . 4 1 6 4 4 2 . . 7 1 6 4 Protection 16 | . . . . 2 1 1 1 2 . . . 3 1 . . 2 1 . 1 . . . . . 1 Artifact . | . . . . . . . . . . . . . . . . . . . . . . . . . . Weapon 44 | . 4 1 . 3 1 4 . 3 . . 5 1 1 2 . 4 4 2 . . . . 2 1 6 Energy Gun 4 | . 1 . . . . . . . . . . . . . . . . . . . . . . . 3 Energy Cannon 8 | . . . . . . . . . . . 1 . . 1 . 1 2 . . . . . 1 1 1 Ballistic Gun 8 | . 2 1 . 1 . 2 . 1 . . . 1 . . . . . . . . . . . . . Ballistic Cannon 5 | . . . . . . . . 1 . . 2 . . . . 1 1 . . . . . . . . Launcher 5 | . 1 . . 1 . 1 . . . . 1 . 1 . . . . . . . . . . . . Special Weapon 9 | . . . . . . . . 1 . . 1 . . . . 1 1 2 . . . . 1 . 2 Impact Weapon 2 | . . . . 1 . 1 . . . . . . . . . . . . . . . . . . . Slashing Weapon 2 | . . . . . . . . . . . . . . 1 . 1 . . . . . . . . . Piercing Weapon . | . . . . . . . . . . . . . . . . . . . . . . . . . . Special Melee Weapon 1 | . . . . . 1 . . . . . . . . . . . . . . . . . . . . Unidentified Prototypes 13 | . 1 . . . . . . . 1 . . . 1 1 . . 1 . . . 1 . 3 . 4 Corrupted Parts 1 | . . . . . . . . . . . . . . 1 . . . . . . . . . . . System Corruption 8 | . . . . . . . . . . . . . . 8 . . . . . . . . . . . Parts Lost 34 | . 1 . . 3 . 2 1 4 . . 3 1 1 . 3 3 4 . . . . . . 1 7 Power 9 | . 1 . . 1 . . . 1 . . 1 . . . 1 1 2 . . . . . . . 1 Propulsion 4 | . . . . . . 1 . . . . . . . . . . 2 . . . . . . . 1 Utility 16 | . . . . 2 . . 1 2 . . 2 1 . . 2 1 . . . . . . . 1 4 Weapon 5 | . . . . . . 1 . 1 . . . . 1 . . 1 . . . . . . . . 1 Highest Loss Streak 4 | . 1 . . 2 . 1 1 4 . . 1 1 1 . 1 1 2 . . . . . . 1 3 To Critical Strikes . | . . . . . . . . . . . . . . . . . . . . . . . . . . Average Backups 18 | 6 7 12 13 13 13 12 15 17 16 16 17 18 16 16 15 16 20 21 22 22 22 22 22 23 23 Power 1 | 1 1 2 2 1 1 2 3 2 1 2 2 2 2 2 2 2 2 . . . 1 1 . . . Propulsion 1 | 4 2 1 1 2 2 1 2 2 2 1 . . 2 2 3 2 2 1 1 1 1 1 1 1 . Utility 10 | . 1 3 3 1 4 4 5 8 8 9 8 9 7 6 4 7 11 14 15 15 14 15 17 18 18 Weapon 3 | 1 2 6 7 7 4 2 4 3 3 2 4 5 4 3 6 4 3 3 4 4 4 2 2 2 2 Tool/Special . | . . . . . . . . . . . . . . . . . . . . . . . . . . Unused Backups 91 | 6 6 . . 2 5 . . 1 3 2 3 2 7 . . 4 4 4 . 2 . 9 2 4 25 Power 8 | 1 1 . . . 1 . . . 1 . . . 1 . . . . 1 . 1 . 1 . . . Propulsion 10 | 2 2 . . . 1 . . . . 1 . . . . . 1 . . . . . . 1 . 2 Utility 50 | 1 . . . 1 . . . 1 2 1 . 2 5 . . 1 4 3 . 1 . 7 . 3 18 Weapon 20 | 2 3 . . 1 3 . . . . . 3 . 1 . . 2 . . . . . 1 . . 4 Tool/Special 3 | . . . . . . . . . . . . . . . . . . . . . . . 1 1 1 Average Slot Usage (%) 85 | . 99 95 100 98 89 84 81 81 83 85 76 79 85 82 89 80 83 76 79 82 85 84 88 92 89 Engine 1 | . 13 11 11 10 8 8 8 4 . . . . . . . . . . . . . . . . . Core 1 | . . . . . . . . 1 7 7 5 6 6 7 11 3 . . . . . . . . . Reactor 4 | . . . . . . . . . . . . . . . . 5 10 10 10 10 10 7 9 8 7 Treads 5 | . 26 19 22 27 24 19 8 7 7 7 5 6 6 4 3 6 . . . . . . . . . Wheel 8 | . 1 11 11 4 . 2 8 7 7 7 6 6 6 3 6 6 10 10 10 10 10 10 11 17 15 Device 7 | . 14 19 22 12 6 11 9 6 1 . . . . 2 3 2 10 5 5 7 10 10 9 8 13 Storage 6 | . 14 11 11 10 8 8 8 7 7 7 6 6 6 6 6 6 5 5 5 5 5 5 4 4 4 Processor 5 | . . . . . . . . 4 11 9 6 8 12 10 9 6 5 5 5 5 5 5 4 4 4 Hackware 19 | . . . . . 6 . 6 3 13 18 24 21 18 23 28 26 22 21 24 25 25 24 26 26 26 Protection 6 | . . . . 8 9 8 6 7 7 7 5 8 12 6 6 6 6 5 9 10 10 10 9 7 4 Energy Cannon 1 | . . . . . . . . . . . 1 2 5 4 6 5 . 1 . . . 2 4 4 4 Ballistic Gun 4 | . 10 22 22 21 24 16 24 21 7 7 1 2 1 4 . 1 . . . . . . . . . Ballistic Cannon 3 | . . . . . . . . 3 6 7 6 3 . . . 1 4 5 5 5 5 5 4 4 3 Special Weapon 3 | . . . . . . . . 1 7 7 5 6 4 1 6 1 3 4 5 5 5 5 4 4 4 Peak Build Rating 170 | 7 24 26 26 26 39 45 45 48 60 53 69 77 82 85 81 95 108 106 109 113 113 116 144 148 170 Average Rating 85 | 6 8 25 26 19 34 39 42 41 51 51 65 68 79 74 76 73 101 101 107 109 110 113 131 144 159 On Entrance 67 | 6 7 24 26 26 16 38 45 45 40 50 53 66 74 82 75 72 91 84 101 107 113 110 115 144 142 Avg Prop Armor Cover (%) 6 | . 12 18 18 7 . 4 4 4 4 4 8 9 6 8 9 8 6 . . . . . . . . Naked Turns . | . . . . . . . . . . . . . . . . . . . . . . . . . . Heaviest Build 215 | 13 34 35 35 42 54 76 75 80 79 77 83 83 88 86 83 114 188 200 196 196 169 172 189 189 215 Greatest Support 86 | 20 40 10 10 66 66 66 34 34 34 34 81 34 81 86 34 34 44 62 62 62 62 62 70 70 70 Greatest Overweight (x) 5 | . 3 3 3 2 . 2 2 2 2 2 2 2 2 2 2 3 5 5 3 3 2 2 3 2 5 Average Overweight (x) 2 | . . 3 3 . . . 1 2 2 2 1 1 1 1 2 1 3 3 3 2 2 2 2 2 2 Largest Inventory Capacity 25 | 8 15 15 15 15 15 20 20 20 20 20 20 20 20 20 20 20 25 25 25 25 25 25 25 25 25 Average Capacity 21 | 8 10 15 15 15 15 16 20 20 20 20 20 20 20 20 20 20 24 25 25 25 25 25 25 25 25 Most Carried 25 | 6 13 13 13 15 15 16 18 20 20 20 20 20 20 20 19 20 25 25 25 25 25 25 25 25 25 Average Carried 20 | 6 7 12 13 13 14 14 17 19 18 19 18 19 19 18 18 19 23 23 24 24 24 24 24 24 24 Final Capacity 25 | 8 15 15 15 15 15 20 20 20 20 20 20 20 20 20 20 20 25 25 25 25 25 25 25 25 25 Final Carried 25 | 6 13 13 13 15 14 16 18 20 17 20 20 20 20 19 19 20 24 25 25 25 24 25 24 25 24 Class Distribution -------------------- 55% | Botlord-Tank 9% | Mutant 7% | Botlord-Mutant 5% | Botlord-Gunner 5% | Scavenger-Tank 4% | Bothacker-Gunner 3% | Bothacker-Mutant Dominant Class ---------------- Mutant | -10/Materials Mutant | -9/Materials Mutant | -9/Storage Scavenger-Mutant | -9/Garrison Tank | -8/Materials Mutant | -8/Garrison Scavenger-Tank | -8/Materials Bothacker-Gunner | -8/Garrison Bothacker-Gunner | -7/Factory Botlord-Gunner | -7/Garrison Botlord-Tank | -6/Factory Botlord-Tank | -6/Extension Commander-Tank | -6/Cetus Bothacker-Mutant | -6/Archives Commander-Skirmisher | -6/Hub_04(d) Botlord-Mutant | -6/Garrison Botlord-Tank | -5/Factory Botlord-Tank | -5/Garrison Botlord-Tank | -4/Factory Botlord-Tank | -4/Waste Botlord-Tank | -4/Factory Botlord-Tank | -4/Garrison Botlord-Tank | -3/Research Botlord-Tank | -3/Garrison Botlord-Tank | -2/Research Resources | -11 -10 -9 -9 -9 -8 -8 -8 -8 -7 -7 -6 -6 -6 -6 -6 -6 -5 -5 -4 -4 -4 -4 -3 -3 -2 ----------- Run | Yrd Mat Mat Sto Gar Mat Gar Mat Gar Fac Gar Fac Ext Cet Arc Hub Gar Fac Gar Fac Was Fac Gar Res Gar Res Matter Collected 18795 | 237 381 . 134 442 147 782 243 1180 283 630 727 716 305 356 135 429 2211 1367 1093 28 387 1381 1040 733 3428 Remotely 482 | . . . . . . . . . . . . . . . . . 245 237 . . . . . . . Salvage Created 13503 | 186 558 . 191 612 200 628 421 897 307 274 762 495 398 330 358 913 1461 246 654 . 284 329 390 595 2014 Parts 611 | 14 29 . 13 40 11 27 26 52 15 18 19 15 22 19 11 37 87 12 15 . 17 11 12 24 65 Haulers Intercepted 10 | . 2 . . . . . 2 . 2 . . . . . . . 2 . . . . . . . 2 Recyclers Shooed 10 | . . . . . . . . . . . . 1 . . . . 1 . 4 . . . . . 4 Parts Field Recycled . | . . . . . . . . . . . . . . . . . . . . . . . . . . Retrieved Matter . | . . . . . . . . . . . . . . . . . . . . . . . . . . Parts Self-Destructed . | . . . . . . . . . . . . . . . . . . . . . . . . . . Prevented . | . . . . . . . . . . . . . . . . . . . . . . . . . . Parts Restored . | . . . . . . . . . . . . . . . . . . . . . . . . . . Kills | -11 -10 -9 -9 -9 -8 -8 -8 -8 -7 -7 -6 -6 -6 -6 -6 -6 -5 -5 -4 -4 -4 -4 -3 -3 -2 ------- Run | Yrd Mat Mat Sto Gar Mat Gar Mat Gar Fac Gar Fac Ext Cet Arc Hub Gar Fac Gar Fac Was Fac Gar Res Gar Res Combat Hostiles Destroyed 235 | . 12 . 6 19 4 13 7 22 5 4 12 8 5 . 3 14 31 10 8 . 3 8 7 10 24 Melee 1 | . . . . . . 1 . . . . . . . . . . . . . . . . . . . Guns 68 | . 11 . 6 14 1 5 7 18 1 1 2 . . . . 2 . . . . . . . . . Cannons 123 | . . . . . . . . 2 4 3 7 8 . . 3 5 31 10 6 . 3 7 5 9 20 AOE 29 | . . . . 5 3 7 . 2 . . 3 . . . . 6 . . . . . 1 . . 2 Classes Destroyed 19 | 2 5 . 1 1 . 1 1 2 . . . 1 . . 1 . 1 . 1 . . . 2 . . Worker 19 | . 2 . 1 . 1 . . . . . 1 1 . . . . 2 . 1 . 5 . . . 5 Builder 5 | . . . . . . . . . . . . 1 . . . . 3 . . . . . . . 1 Tunneler 12 | 5 . . . . . . . . . . 1 . . . 1 . 4 . . . . . . . 1 Hauler 10 | . 2 . . . . . 2 . 2 . . . . . . . 2 . . . . . . . 2 Recycler 14 | 1 1 . . . . . . . . . 1 . . . 1 . 1 . 3 . 1 . . . 5 Mechanic 1 | . . . . . . . . . . . . . . . . . 1 . . . . . . . . Operator 8 | . . . . . . . 1 . . . . . . 6 1 . . . . . . . . . . Watcher 13 | . 2 . . . 1 . 1 . . . . 1 . . 1 1 3 . . . . . . . 3 Swarmer 53 | . 6 . 3 6 . . 3 5 . 1 1 2 . . . 8 3 1 . . . 1 1 7 5 Grunt 88 | . 6 . 2 10 3 9 3 4 5 . 7 4 . . 1 2 11 . 5 . 1 3 2 5 5 Brawler 11 | . . . 1 . . . . 3 . . . 1 . . . 2 . 1 . . . 3 . . . Duelist 3 | . . . . . . . . 1 . . . . . . . . . . . . . . . . 2 Sentry 21 | . . . . 3 1 3 1 7 . . 1 1 . . . 1 1 1 . . . . . 1 . Demolisher 1 | . . . . . . . . . . . . . . . . . . . 1 . . . . . . Specialist 3 | . . . . . . . . . . . . . . . 1 1 . . . . . . . . 1 Hunter 20 | . . . . . . 3 . . . 2 3 . . . . . 5 2 . . . . 2 . 3 Programmer 41 | . . . . . . . . 2 . 1 2 . . . 1 1 12 5 2 . 2 1 . 2 10 Behemoth 2 | . . . . . . . . . . . . . . . . . . . . . . . 1 1 . Cetus Guard 5 | . . . . . . . . . . . . . 5 . . . . . . . . . . . . Thug 2 | . . . . . . . . . . . . 1 . 1 . . . . . . . . . . . Savage 2 | . . . . . . 1 . . . . . . . 1 . . . . . . . . . . . Revision 1 | . . . . . . . . . . . . . . . . . . . . . . . 1 . . Best Kill Streak 10 | 4 4 . 7 7 3 4 4 5 3 3 2 2 3 2 2 6 9 3 3 . 6 3 2 2 10 Combat Bots Only 7 | . 3 . 3 7 3 4 3 5 2 3 2 2 3 . 1 6 6 3 3 . 2 3 2 2 4 Max Kills in Single Turn 5 | 1 2 . 1 2 3 2 1 1 2 1 2 1 1 1 1 2 2 1 1 . 1 1 1 5 4 Gunslinging . | . . . . . . . . . . . . . . . . . . . . . . . . . . Exploded 3 | . . . . 2 3 2 . 1 . . 2 . . . . 2 . . . . . 1 . . 1 Melee 1 | . . . . . . 1 . . . . . . . . . . . . . . . . . . . Uniques/NPCs Destroyed . | . . . . . . . . . . . . . . . . . . . . . . . . . . Combat | -11 -10 -9 -9 -9 -8 -8 -8 -8 -7 -7 -6 -6 -6 -6 -6 -6 -5 -5 -4 -4 -4 -4 -3 -3 -2 -------- Run | Yrd Mat Mat Sto Gar Mat Gar Mat Gar Fac Gar Fac Ext Cet Arc Hub Gar Fac Gar Fac Was Fac Gar Res Gar Res Hostile Shots Fired 1385 | . 73 . 21 79 18 53 40 67 12 58 74 75 21 . 83 106 150 63 58 . 31 54 26 58 165 Missed 428 | . 16 . 6 22 8 16 14 13 4 23 21 31 12 . 23 50 33 21 15 . 8 14 8 22 48 Hits 957 | . 57 . 15 57 10 37 26 54 8 35 53 44 9 . 60 56 117 42 43 . 23 40 18 36 117 Melee 15 | . . . . . . . . 15 . . . . . . . . . . . . . . . . . Projectile 942 | . 57 . 15 57 10 37 26 39 8 35 53 44 9 . 60 56 117 42 43 . 23 40 18 36 117 AOE 6 | . . . . . . . . . . . . . . . . 1 . 1 4 . . . . . . Critical Strikes 32 | . 1 . . . 1 2 . 3 . 2 2 1 . . . . 4 2 2 . . 4 1 1 6 Actively Blocked 1 | . . . . . . . . . . . . . . . . . . . . . . . . 1 . Part Disruptions 1 | . . . . . . . . . . . . . . . . 1 . . . . . . . . . Damage Taken 13634 | . 500 . 124 676 174 681 365 1017 129 368 1006 608 155 . 732 881 1661 371 441 . 204 562 319 802 1858 Core 1333 | . 63 . 24 162 . 34 29 94 13 17 53 35 30 . 83 71 164 51 31 . 34 98 . 147 100 Absorbed by Shields 3033 | . . . . 5 . . . 21 . . . 55 99 . . . 331 263 415 . 193 333 239 120 959 Redirected to Shielding 106 | . . . . . . . . . . . . . . . . . . . 15 . 3 25 27 36 . Ignored by Resistances 1196 | . . . . . . . . . . . . 5 9 . . . 326 194 96 . . . . . 566 Regen/Repaired (Parts) 2687 | . . . . . 108 . . . 340 178 211 . . . . . 1000 . . . 158 338 95 . 259 Core Remaining (%) 76 | 100 74 . . 19 . . . 73 . 96 . . . . . 69 . 79 . . . 86 . 89 . Volleys Fired 1403 | 9 47 . 11 45 7 61 35 59 37 53 61 78 10 . 45 76 171 84 59 . 37 97 39 90 192 Largest 4 | 2 2 . 2 3 3 3 3 4 2 2 3 2 2 . 1 2 2 2 1 . 1 2 2 1 2 Hottest 180 | 70 100 . 46 69 69 69 69 113 67 67 111 90 133 . 90 180 151 151 70 . 70 151 151 100 130 Shots Fired 1814 | 18 93 . 21 85 17 106 105 163 45 62 83 88 11 . 45 93 173 85 59 . 37 100 42 90 193 Gun 645 | 18 92 . 21 79 15 92 105 136 11 33 13 11 . . . 17 . . . . . . . . 2 Cannon 838 | . . . . . . . . 25 14 19 61 39 2 . 34 59 145 66 45 . 25 67 24 70 143 Launcher 41 | . 1 . . 6 2 14 . 2 . . 2 . 8 . . 6 . . . . . . . . . Special 290 | . . . . . . . . . 20 10 7 38 1 . 11 11 28 19 14 . 12 33 18 20 48 Kinetic 1169 | 9 27 . 21 79 15 92 105 161 25 52 66 34 . . . 19 133 51 45 . 25 63 16 33 98 Thermal 184 | 9 65 . . . . . . . . . 8 16 2 . 34 45 . . . . . . . . 5 Explosive 33 | . 1 . . 6 2 14 . 2 . . 2 . . . . 6 . . . . . . . . . Electromagnetic 138 | . . . . . . . . . . . . . 8 . . 12 12 15 . . . 4 8 37 42 Robot Hit Streak 30 | 7 9 . 5 16 7 20 14 29 8 25 10 10 3 . 6 11 11 10 9 . 14 8 13 15 30 Robot Miss Streak 5 | 1 5 . 2 4 2 2 5 3 2 5 5 2 2 . 3 2 5 2 2 . 3 2 1 2 3 Penetration Max 1 | . . . . . . . . . . . . . . . . . . . . . . . . . 1 Secondary Targets 9 | . 1 . . 2 . 1 1 4 . . . . . . . . . . . . . . . . . Max Gunslinging Chain 1 | . 1 . . 1 . 1 1 1 . . . . . . . . . . . . . . . . . Capacitor 21 | . . . . . . . . . . . . . . . . 12 . . . . . . . . 9 Shots Hit Robots 1127 | 10 56 . 12 57 14 79 71 96 30 35 41 60 3 22 26 76 96 37 42 . 24 43 34 51 112 Core Hits 451 | 7 26 . 8 26 11 52 21 37 10 15 25 15 11 7 8 31 39 8 7 . 6 5 6 30 40 Critical Kills 4 | . . . 1 . . . . 2 . . . . . . 1 . . . . . . . . . . Critical Parts Destroyed 4 | . . . . . . . . 4 . . . . . . . . . . . . . . . . . Critical Strikes 63 | 1 6 . 1 . . . . 6 . 1 5 . . 4 1 2 10 5 5 . 3 3 . 4 6 Burn 7 | 1 6 . . . . . . . . . . . . . . . . . . . . . . . . Meltdown 1 | . . . . . . . . . . . . . . . 1 . . . . . . . . . . Destroy 7 | . . . 1 . . . . 6 . . . . . . . . . . . . . . . . . Blast 42 | . . . . . . . . . . 1 5 . . . . . 10 5 5 . 3 3 . 4 6 Sever 6 | . . . . . . . . . . . . . . 4 . 2 . . . . . . . . . Melee Attacks 68 | . . . . 10 2 1 4 . . . . . . 22 . 29 . . . . . . . . . Impact 11 | . . . . 10 . 1 . . . . . . . . . . . . . . . . . . . Slashing 51 | . . . . . . . . . . . . . . 22 . 29 . . . . . . . . . Piercing . | . . . . . . . . . . . . . . . . . . . . . . . . . . Sneak Attacks 20 | . . . . . . . 4 . . . . . . 14 . 2 . . . . . . . . . Combat Hostiles . | . . . . . . . . . . . . . . . . . . . . . . . . . . Follow-up Attacks . | . . . . . . . . . . . . . . . . . . . . . . . . . . Damage Inflicted 42028 | 148 791 . 220 1250 360 2259 943 1878 477 516 1597 1354 619 1509 592 3368 6616 1806 2330 . 1309 1426 1094 3208 6358 Guns 6224 | 148 769 . 220 799 184 774 938 1391 125 364 149 124 . . . 177 . . . . . . . . 62 Cannons 27037 | . . . . . . . . 239 352 120 1117 1230 . . 592 1186 6467 1806 2330 . 1309 1426 997 2209 5657 Explosions 5671 | . . . . 423 176 1478 . 248 . 32 274 . 619 . . 568 149 . . . . . 97 999 608 Melee 2974 | . . . . 28 . . . . . . . . . 1509 . 1437 . . . . . . . . . Ramming 122 | . 22 . . . . 7 5 . . . 57 . . . . . . . . . . . . . 31 Kinetic 27855 | 83 154 . 220 799 184 774 938 1630 477 484 1239 1003 . . . 247 6090 1799 2330 . 1309 1426 714 1669 4286 Thermal 4114 | 65 615 . . . . . . . . . 81 351 . . 592 1018 149 . . . . . 97 999 147 Explosive 3668 | . . . . 423 176 1478 . 248 . 32 220 . . . . 568 . . . . . . . . 523 Electromagnetic 3295 | . . . . . . . . . . . . . 619 . . 98 377 7 . . . . 283 540 1371 Impact 28 | . . . . 28 . . . . . . . . . . . . . . . . . . . . . Slashing 2946 | . . . . . . . . . . . . . . 1509 . 1437 . . . . . . . . . Piercing . | . . . . . . . . . . . . . . . . . . . . . . . . . . Highest Corruption 22 | . . . . . . 2 . 8 . . 2 . . 8 . . 3 4 . . . . 4 4 22 Average Corruption 5 | . . . . . . 2 . 6 . . 2 . . 3 . . 2 3 . . . . 4 3 11 Corruption Purged 8 | . . . . . . . . . . . . . . 8 . . . . . . . . . . . Corruption Blocked . | . . . . . . . . . . . . . . . . . . . . . . . . . . Effects 162 | . . . . . . 2 . 26 . . 13 . . 5 . . 27 4 . . . . 10 12 63 Message Errors 36 | . . . . . . 1 . 7 . . 1 . . 2 . . 6 1 . . . . 3 2 13 Matter Fused 45 | . . . . . . 1 . 7 . . 4 . . 1 . . 5 1 . . . . 3 3 20 Heat Flow Errors 16 | . . . . . . . . 4 . . 2 . . . . . 1 1 . . . . 2 1 5 Energy Discharges 15 | . . . . . . . . 2 . . 1 . . 1 . . 2 . . . . . 1 2 6 Parts Rejected 2 | . . . . . . . . . . . . . . . . . 1 . . . . . . . 1 Parts Fused 1 | . . . . . . . . 1 . . . . . . . . . . . . . . . . . Data Loss (minor) 28 | . . . . . . . . 1 . . 3 . . 1 . . 6 1 . . . . 1 4 11 Data Loss (major) 4 | . . . . . . . . 1 . . . . . . . . 2 . . . . . . . 1 Misfires 5 | . . . . . . . . 1 . . . . . . . . 2 . . . . . . . 2 Alerts 5 | . . . . . . . . 1 . . 1 . . . . . 1 . . . . . . . 2 Weapon Failures 5 | . . . . . . . . 1 . . 1 . . . . . 1 . . . . . . . 2 Overload Shots 12 | . . . . . . . . . . . 1 4 2 . . 5 . . . . . . . . . Effects 1 | . . . . . . . . . . . . 1 . . . . . . . . . . . . . Energy Bleed 1 | . . . . . . . . . . . . 1 . . . . . . . . . . . . . Overflow Damage 4308 | . . . . . . 3 . 28 . 2 31 11 . 427 8 168 1049 342 482 . 224 169 . 371 993 Projectiles 3533 | . . . . . . . . . . 2 16 11 . . 8 18 1002 342 482 . 224 169 . 317 942 Explosions 254 | . . . . . . 3 . 28 . . . . . . . 82 47 . . . . . . 54 40 Melee 521 | . . . . . . . . . . . 15 . . 427 . 68 . . . . . . . . 11 Knockbacks 108 | . . . . . . . . 1 1 . 6 3 . . . . 28 10 17 . 7 7 . 7 21 Impact 1 | . . . . . . . . . . . . . . . . . . . . . . . . . 1 Kinetic 95 | . . . . . . . . 1 1 . 6 2 . . . . 27 8 15 . 7 6 . 5 17 Secondary 12 | . . . . . . . . . . . . 1 . . . . 1 2 2 . . 1 . 2 3 Self-Inflicted Damage 274 | . . . . . . 74 2 . . . 28 . . . . . . . . . . . . 105 65 Shots 5 | . . . . . . 2 . . . . . . . . . . . . . . . . . 2 1 Rammed 11 | . 4 . . 1 . . 1 . . . 3 1 . . . . . . . . . . . . 1 Targets Rammed 13 | . 5 . . 1 . 1 1 . . . 3 1 . . . . . . . . . . . . 1 Kicked . | . . . . . . . . . . . . . . . . . . . . . . . . . . Crushed 2 | . 1 . . . . 1 . . . . . . . . . . . . . . . . . . . Highest Temperature 448 | 36 384 . . 21 24 68 42 270 59 30 198 332 60 . 360 292 412 331 287 . 222 123 250 336 448 Average Temperature 86 | 19 75 . . 5 9 34 18 56 18 7 35 72 29 . 134 84 106 97 83 . 85 33 104 99 127 Received Heat Transfer 2800 | . 114 . . 252 90 216 54 183 72 66 312 390 13 . 219 165 300 12 34 . 10 209 19 54 16 Effects 33 | . . . . . . . . 2 . . . . . . 3 . 9 6 . . 1 . . 1 11 Shutdowns 8 | . . . . . . . . . . . . . . . 2 . 4 . . . . . . . 2 Energy Bleed 4 | . . . . . . . . . . . . . . . 1 . . . . . 1 . . 1 1 Interference 15 | . . . . . . . . 2 . . . . . . . . 3 5 . . . . . . 5 Matter Decay 1 | . . . . . . . . . . . . . . . . . . . . . . . . . 1 Short Circuit 3 | . . . . . . . . . . . . . . . . . 1 1 . . . . . . 1 Damage (minor) 2 | . . . . . . . . . . . . . . . . . 1 . . . . . . . 1 Siege Activations 1 | . . . . . . . . . . . . . . . . . . . . . . . . . 1 Total Turns 45 | . . . . . . . . . . . . . . . . . . . . . . . . . 45 Longest Duration 45 | . . . . . . . . . . . . . . . . . . . . . . . . . 45 Martial Activations . | . . . . . . . . . . . . . . . . . . . . . . . . . . Shielding Activations . | . . . . . . . . . . . . . . . . . . . . . . . . . . Robots Disrupted . | . . . . . . . . . . . . . . . . . . . . . . . . . . Combat Hostiles . | . . . . . . . . . . . . . . . . . . . . . . . . . . Robots Corrupted 14 | . . . . . . . . . . . 1 . 5 . . . . . 1 . . . 2 1 4 Combat Hostiles 11 | . . . . . . . . . . . . . 5 . . . . . 1 . . . 2 1 2 Parts Fried 18 | . . . . . . . . . . . 1 . 3 . . 1 2 . 4 . . . . 2 5 Impact Corruptions 6 | . . . . . . . . . . . 1 . . . . . . 1 1 . . . . . 3 Robots Melted 3 | . 1 . . . . . . . . . . . . . 1 1 . . . . . . . . . Combat Hostiles 2 | . 1 . . . . . . . . . . . . . . 1 . . . . . . . . . Parts Melted 9 | . 2 . . . . . . . . . . . . . 3 3 . . . . . 1 . . . Heat Transferred 6199 | 259 2183 . . . . . . . . . 87 396 . . 900 1350 150 . . . . . 100 650 124 Parts Sabotaged . | . . . . . . . . . . . . . . . . . . . . . . . . . . Parts Stolen . | . . . . . . . . . . . . . . . . . . . . . . . . . . Parts Stripped . | . . . . . . . . . . . . . . . . . . . . . . . . . . Power Chain Reactions 6 | . . . . . . . . . . . . . . . . . . . . . . . 1 4 1 Alert | -11 -10 -9 -9 -9 -8 -8 -8 -8 -7 -7 -6 -6 -6 -6 -6 -6 -5 -5 -4 -4 -4 -4 -3 -3 -2 ------- Run | Yrd Mat Mat Sto Gar Mat Gar Mat Gar Fac Gar Fac Ext Cet Arc Hub Gar Fac Gar Fac Was Fac Gar Res Gar Res Maximum Alert Level 4 | . 1 . . 2 2 3 2 4 2 3 2 1 1 . 1 3 2 2 1 . . 2 2 2 2 Low Security (%) 42 | 100 96 100 100 23 . . 72 31 33 . 14 86 26 100 91 18 24 . 43 100 100 32 66 23 73 Level 1 30 | . 3 . . 23 96 22 17 9 17 11 60 13 73 . 8 24 70 27 56 . . 15 1 57 23 Level 2 19 | . . . . 53 3 5 10 19 48 41 24 . . . . 28 4 72 . . . 51 32 19 3 Level 3 7 | . . . . . . 71 . 35 . 47 . . . . . 28 . . . . . . . . . Level 4 . | . . . . . . . . 4 . . . . . . . . . . . . . . . . . Level 5 . | . . . . . . . . . . . . . . . . . . . . . . . . . . High Security . | . . . . . . . . . . . . . . . . . . . . . . . . . . Max Security . | . . . . . . . . . . . . . . . . . . . . . . . . . . Peak Influence 1121 | 15 215 60 131 657 405 1014 494 1121 606 779 451 237 316 80 330 871 457 644 338 5 40 660 513 447 489 Initial 588 | . 3 60 16 78 319 225 494 59 588 317 408 175 128 64 . 137 457 241 338 5 . 9 371 14 251 Average 287 | 5 119 53 62 391 344 731 123 533 346 626 320 97 230 19 93 499 234 484 181 . 11 373 181 278 124 Influence Increases 14384 | 30 541 . 145 609 274 869 253 1162 657 562 714 738 298 164 957 864 1313 583 323 . 148 767 565 563 1285 Destroy 0b10 Robot/C 5810 | . 240 . 120 440 120 480 140 740 360 200 195 330 135 45 300 285 480 195 120 . 45 180 150 150 360 Destroy 0b10 Robot/NC 422 | 30 35 . 5 . 10 5 25 5 15 4 12 16 8 24 28 20 72 . 16 . 24 . . . 68 Destroy Leader 838 | . 48 . 20 20 32 30 38 40 46 40 48 42 . . 94 8 138 . 40 . 16 32 24 8 74 Allied During Kill 2272 | . . . . 12 28 138 6 106 146 65 25 302 143 69 336 156 109 16 42 . 19 96 120 95 243 Successful Hack 533 | . 12 . . 35 24 14 11 14 42 12 25 5 . . 14 9 98 11 11 . 18 . 70 . 108 Select Force Hacks 258 | . 30 . . . 30 . . . 30 . 69 . . . 76 . . . . . . . 23 . . Disable Machine 591 | . . . . . . . . . 15 . 84 24 12 24 60 24 132 24 48 . . 36 24 12 72 Anti-Garrison Action 1271 | . . . . 50 . 100 . 150 . 176 . . . . . 227 . 151 . . . 303 . 114 . Destroy Structure 1697 | . 11 . . 37 15 87 3 77 3 65 50 19 . 2 49 135 236 102 34 . 26 108 154 184 300 Partial Spotted 12 | . . . . . . . . . . . . . . . . . . . 12 . . . . . . Lose Combat Pursuer 474 | . 165 . . 15 15 15 30 30 . . . . . . . . 48 84 . . . 12 . . 60 Miscellaneous 206 | . . . . . . . . . . . 206 . . . . . . . . . . . . . . Influence Decreases 14220 | 25 402 104 64 73 584 202 1175 133 1325 236 1135 865 367 326 760 190 1839 284 950 17 134 121 1206 135 1568 Entered New Map 3981 | . 2 84 24 43 338 122 520 33 533 136 371 183 103 98 . 60 414 104 306 12 . 5 289 5 196 Time Decay 5047 | 25 390 20 40 . 246 . 201 . 302 . 494 420 254 148 310 . 697 . 374 5 134 . 433 . 554 Lost Part 340 | . 10 . . 30 . 20 10 40 . . 30 10 10 . 30 30 40 . . . . . . 10 70 Lost Ally 1881 | . . . . . . 60 30 60 40 100 90 103 . 80 120 100 280 180 120 . . 116 109 120 173 Purge Threat 2971 | . . . . . . . 414 . 450 . 150 149 . . 300 . 408 . 150 . . . 375 . 575 Squads Dispatched 76 | . 3 . 1 . 4 . 2 . 7 . 6 2 . . 8 . 12 . 7 . 3 . 9 . 12 Investigation 27 | . 2 . . . 3 . . . 3 . 4 1 . . 3 . 1 . 1 . 1 . 7 . 1 Extermination 17 | . . . . . . . . . 2 . 2 . . . 1 . 6 . 1 . 1 . . . 4 Reinforcement 27 | . 1 . . . 1 . 2 . 2 . . 1 . . 3 . 5 . 4 . 1 . 2 . 5 Assault 2 | . . . . . . . . . . . . . . . . . . . . . . . . . 2 Garrison 3 | . . . 1 . . . . . . . . . . . 1 . . . 1 . . . . . . Intercept . | . . . . . . . . . . . . . . . . . . . . . . . . . . Searches Triggered . | . . . . . . . . . . . . . . . . . . . . . . . . . . Construction Impeded 3 | . . . . . . . . . 1 . . . . . 1 . 1 . . . . . . . . Haulers Reinforced 5 | . . . . . . . . . . . . . . . . . . . 2 . . . 1 . 2 Active Scanning Responses . | . . . . . . . . . . . . . . . . . . . . . . . . . . Cargo Convoy Interrupts . | . . . . . . . . . . . . . . . . . . . . . . . . . . Alert ID Control Effect 105 | . . . . . . . . . 1 1 4 2 . 1 4 6 6 5 9 . 6 17 7 7 29 Stealth | -11 -10 -9 -9 -9 -8 -8 -8 -8 -7 -7 -6 -6 -6 -6 -6 -6 -5 -5 -4 -4 -4 -4 -3 -3 -2 --------- Run | Yrd Mat Mat Sto Gar Mat Gar Mat Gar Fac Gar Fac Ext Cet Arc Hub Gar Fac Gar Fac Was Fac Gar Res Gar Res Distress Signals 26 | . 3 . . . 1 . 1 1 1 . . 1 . . 2 1 3 . 4 . . . 4 . 4 Communications Jammed 222 | . . . . . . . . . 18 . . 12 17 . 14 . 27 . 77 . 26 . . . 31 Distress Signals 220 | . . . . . . . . . 18 . . 12 17 . 14 . 27 . 77 . 24 . . . 31 Times Spotted 603 | . 23 . 6 23 8 23 12 33 17 15 22 26 10 16 16 34 62 35 35 . 14 39 25 38 71 Peak Tracking Total 9 | . 6 . 3 6 3 6 4 5 5 6 3 5 4 2 3 5 5 9 8 . 4 7 5 7 8 Tactical Retreats 24 | . 7 . . 1 1 1 2 1 . . . . . . . . 3 4 . . . 1 . . 3 Traps | -11 -10 -9 -9 -9 -8 -8 -8 -8 -7 -7 -6 -6 -6 -6 -6 -6 -5 -5 -4 -4 -4 -4 -3 -3 -2 ------- Run | Yrd Mat Mat Sto Gar Mat Gar Mat Gar Fac Gar Fac Ext Cet Arc Hub Gar Fac Gar Fac Was Fac Gar Res Gar Res Traps Triggered 41 | . 1 . . 2 . . . 8 2 . . . . . . 7 . 7 2 . . 9 . 3 . Indirectly . | . . . . . . . . . . . . . . . . . . . . . . . . . . Trap Hack Attempts . | . . . . . . . . . . . . . . . . . . . . . . . . . . Triggered . | . . . . . . . . . . . . . . . . . . . . . . . . . . Disarmed . | . . . . . . . . . . . . . . . . . . . . . . . . . . Reprogrammed 6 | . . . . . . . . . . . . . . . . . . . . . . . 6 . . Reused . | . . . . . . . . . . . . . . . . . . . . . . . . . . Traps Extracted . | . . . . . . . . . . . . . . . . . . . . . . . . . . Installed . | . . . . . . . . . . . . . . . . . . . . . . . . . . Triggered . | . . . . . . . . . . . . . . . . . . . . . . . . . . Machines | -11 -10 -9 -9 -9 -8 -8 -8 -8 -7 -7 -6 -6 -6 -6 -6 -6 -5 -5 -4 -4 -4 -4 -3 -3 -2 ---------- Run | Yrd Mat Mat Sto Gar Mat Gar Mat Gar Fac Gar Fac Ext Cet Arc Hub Gar Fac Gar Fac Was Fac Gar Res Gar Res Machines Disabled 82 | . . . . 3 . 3 . 5 1 6 7 2 1 2 5 7 11 4 4 . . 9 2 4 6 Max in Single Turn 4 | . . . . 1 . 2 . 2 . 2 4 1 1 . 1 2 2 1 1 . . 1 1 1 1 Garrison Access 9 | . . . . . . . . . . . 2 . . . . . 2 . 2 . . . 1 . 2 Garrison Relay 23 | . . . . 1 . 1 . 2 . 3 . . . . . 4 . 3 . . . 6 . 3 . Phase Generator 4 | . . . . . . 1 . 1 . 1 . . . . . 1 . . . . . . . . . Network Hub 3 | . . . . . . . . . . . . . . . 3 . . . . . . . . . . Machines Repaired . | . . . . . . . . . . . . . . . . . . . . . . . . . . Machines Dismantled 1 | . . . . . . . . . . . . . . . . . . 1 . . . . . . . Machines Sabotaged 2 | . . . . . . . . . . . . . . . 2 . . . . . . . . . . Overloaded Fab Kills . | . . . . . . . . . . . . . . . . . . . . . . . . . . Hacking | -11 -10 -9 -9 -9 -8 -8 -8 -8 -7 -7 -6 -6 -6 -6 -6 -6 -5 -5 -4 -4 -4 -4 -3 -3 -2 --------- Run | Yrd Mat Mat Sto Gar Mat Gar Mat Gar Fac Gar Fac Ext Cet Arc Hub Gar Fac Gar Fac Was Fac Gar Res Gar Res Machines Accessed 111 | . 4 . 1 3 10 2 4 2 5 3 15 6 . . 7 2 13 2 9 . 3 1 7 . 12 Terminals 70 | . 2 . . 3 6 2 3 2 2 3 7 6 . . 6 2 6 2 6 . 2 1 3 . 6 Fabricators 4 | . . . . . . . . . . . 1 . . . . . . . 1 . . . 1 . 1 Repair Stations 8 | . 1 . . . 1 . . . 1 . . . . . . . 3 . . . . . 1 . 1 Recycling Units 7 | . 1 . . . 1 . . . 1 . 4 . . . . . . . . . . . . . . Scanalyzers 7 | . . . . . 1 . . . . . 1 . . . . . 1 . . . . . 1 . 3 Garrison Access 15 | . . . 1 . 1 . 1 . 1 . 2 . . . 1 . 3 . 2 . 1 . 1 . 1 Total Hacks 326 | . 11 . 1 6 29 4 8 3 10 6 28 10 . . 21 5 52 5 32 . 8 1 28 . 58 Successful 150 | . 4 . 1 3 12 1 4 1 5 2 13 5 . . 11 2 30 2 8 . 3 . 17 . 26 Failed 173 | . 6 . . 3 17 3 4 2 5 4 15 5 . . 10 3 22 3 23 . 5 1 11 . 31 Catastrophic 39 | . 1 . . . 4 1 1 1 1 1 4 2 . . 2 2 4 1 6 . . . 4 . 4 Database Lockouts 3 | . 1 . . . . . . . . . . . . . . . . . 1 . . . . . 1 Manual 145 | . 11 . . . 25 . 7 . 9 2 9 3 1 . 15 3 17 1 24 . 2 1 3 . 12 Terminals 212 | . 8 . . 6 22 4 7 3 6 6 13 10 . . 19 5 26 5 25 . 7 1 10 . 29 Fabricators 15 | . . . . . . . . . . . 3 . . . . . . . 5 . . . 5 . 2 Repair Stations 27 | . 2 . . . 2 . . . 2 . . . . . . . 15 . . . . . 3 . 3 Recycling Units 9 | . 1 . . . 1 . . . 1 . 6 . . . . . . . . . . . . . . Scanalyzers 45 | . . . . . 1 . . . . . 4 . . . . . 8 . . . . . 9 . 23 Garrison Access 18 | . . . 1 . 3 . 1 . 1 . 2 . . . 2 . 3 . 2 . 1 . 1 . 1 Terminal Hacks 55 | . 2 . . 3 5 1 3 1 1 2 3 4 . . 2 2 9 2 4 . 1 . 4 . 6 Record 1 | . . . . . . . . . . . . . . . . . . . . . . . . . 1 Part Schematic 4 | . . . . . 1 . 1 . 1 . . . . . . . 1 . . . . . . . . Robot Schematic 1 | . . . . . 1 . . . . . . . . . . . . . . . . . . . . Robot Analysis 7 | . 2 . . . 2 . 1 . . . . . . . . . . . 2 . . . . . . Prototype ID Bank 1 | . . . . . . . . . . . . . . . . . . . . . . . 1 . . Open Door 6 | . . . . 1 . . . . . . 1 4 . . . . . . . . . . . . . Branch Access Points 1 | . . . . . . . . . . . . . . . . . 1 . . . . . . . . Emergency Access Points 4 | . . . . . . . . 1 . 1 . . . . . 1 . 1 . . . . . . . Terminal Index 4 | . . . . . 1 . . . . . 1 . . . . . 1 . . . . . . . 1 Scanalyzer Index 1 | . . . . . . . . . . . . . . . . . 1 . . . . . . . . Unreport Threat 7 | . . . . . . . 1 . . . 1 . . . 1 . 1 . 1 . . . . . 2 Locate Traps 1 | . . . . . . . . . . . . . . . . . 1 . . . . . . . . Reprogram Traps 1 | . . . . . . . . . . . . . . . . . . . . . . . 1 . . Recall Assault 1 | . . . . . . . . . . . . . . . . . . . . . . . . . 1 Hauler Manifests 2 | . . . . . . . . . . . . . . . . . 1 . . . . . 1 . . Registered Components 4 | . . . . . . . . . . . . . . . . . 1 . 1 . . . 1 . 1 Registered Prototypes 1 | . . . . . . . . . . . . . . . . . . . . . 1 . . . . Zone Layout 2 | . . . . . . . . . . . . . . . 1 . 1 . . . . . . . . Garrison Registry 5 | . . . . 1 . 1 . . . 1 . . . . . 1 . 1 . . . . . . . Patrol Navigation 1 | . . . . 1 . . . . . . . . . . . . . . . . . . . . . Fabricator Hacks 7 | . . . . . . . . . . . 2 . . . . . . . 1 . . . 2 . 2 Load Schematic 4 | . . . . . . . . . . . 1 . . . . . . . 1 . . . 1 . 1 Build 3 | . . . . . . . . . . . 1 . . . . . . . . . . . 1 . 1 Repair Station Hacks 13 | . 1 . . . 2 . . . . . . . . . . . 8 . . . . . 2 . . Scan Component 7 | . 1 . . . 1 . . . . . . . . . . . 4 . . . . . 1 . . Repair 6 | . . . . . 1 . . . . . . . . . . . 4 . . . . . 1 . . Recycling Unit Hacks . | . . . . . . . . . . . . . . . . . . . . . . . . . . Scanalyzer 30 | . . . . . 1 . . . . . 2 . . . . . 7 . . . . . 6 . 14 Insert Component 9 | . . . . . . . . . . . . . . . . . 2 . . . . . 2 . 5 Analyze 12 | . . . . . . . . . . . . . . . . . 2 . . . . . 2 . 8 Retrieve Study 9 | . . . . . 1 . . . . . 2 . . . . . 3 . . . . . 2 . 1 Garrison Access Hacks 15 | . . . 1 . 1 . 1 . 1 . 2 . . . 1 . 3 . 2 . 1 . 1 . 1 Unlock Access 8 | . . . 1 . 1 . 1 . 1 . . . . . 1 . 1 . . . 1 . 1 . . Seal Access 7 | . . . . . . . . . . . 2 . . . . . 2 . 2 . . . . . 1 Unauthorized Hacks 30 | . 1 . . . 3 . . . 3 . 4 1 . . 8 . 3 . 1 . 1 . 2 . 3 Terminals 16 | . . . . . 1 . . . 1 . 1 1 . . 7 . 2 . 1 . 1 . . . 1 Track 1 | . . . . . . . . . . . . . . . 1 . . . . . . . . . . Assimilate 1 | . . . . . . . . . . . . . . . 1 . . . . . . . . . . Botnet 10 | . . . . . 1 . . . 1 . 1 1 . . 2 . 1 . 1 . 1 . . . 1 Operators 2 | . . . . . . . . . . . . . . . 1 . 1 . . . . . . . . Sabotage 2 | . . . . . . . . . . . . . . . 2 . . . . . . . . . . Fabricators . | . . . . . . . . . . . . . . . . . . . . . . . . . . Repair Stations 5 | . . . . . . . . . 1 . . . . . . . 1 . . . . . 1 . 2 Mechanics 4 | . . . . . . . . . 1 . . . . . . . 1 . . . . . 1 . 1 Patch 1 | . . . . . . . . . . . . . . . . . . . . . . . . . 1 Recycling Units 6 | . 1 . . . 1 . . . 1 . 3 . . . . . . . . . . . . . . Tunnel 6 | . 1 . . . 1 . . . 1 . 3 . . . . . . . . . . . . . . Scanalyzers 1 | . . . . . . . . . . . . . . . . . . . . . . . 1 . . Extract 1 | . . . . . . . . . . . . . . . . . . . . . . . 1 . . Garrison Access 2 | . . . . . 1 . . . . . . . . . 1 . . . . . . . . . . Broadcast 1 | . . . . . . . . . . . . . . . 1 . . . . . . . . . . Reprogram 1 | . . . . . 1 . . . . . . . . . . . . . . . . . . . . Data Cores Recovered . | . . . . . . . . . . . . . . . . . . . . . . . . . . Used . | . . . . . . . . . . . . . . . . . . . . . . . . . . Hacking Detections 75 | . 3 . . 2 8 2 3 2 4 3 10 2 . . 4 1 7 2 7 . 1 . 4 . 10 Full Trace Events 8 | . 1 . . . 1 . . . 1 . 1 . . . . . 1 . 1 . 1 . 1 . . Feedback Events 1 | . . . . . . . . . . . . . . . . . 1 . . . . . . . . Corruption 1 | . . . . . . . . . . . . . . . . . 1 . . . . . . . . Feedback Blocked . | . . . . . . . . . . . . . . . . . . . . . . . . . . Robot Schematics Acquired 1 | . . . . . 1 . . . . . . . . . . . . . . . . . . . . Robots Built . | . . . . . . . . . . . . . . . . . . . . . . . . . . Authchips 1 | . . . . . . . . . . . . . . . . . . . . . . . . . 1 Time 38 | . . . . . . . . . . . . . . . . . . . . . . . . . 38 Total Robot Build Rating . | . . . . . . . . . . . . . . . . . . . . . . . . . . Part Schematics Acquired 13 | . . . . . 1 . 1 . 1 . . . . . . . 3 . . . . . 3 . 4 Parts Built 3 | . . . . . . . . . . . 1 . . . . . . . . . . . 2 . . Authchips . | . . . . . . . . . . . . . . . . . . . . . . . . . . Time 78 | . . . . . . . . . . . 36 . . . . . . . . . . . 42 . . Total Part Build Rating 19 | . . . . . . . . . . . 3 . . . . . . . . . . . 16 . . Part Studies Acquired 9 | . . . . . 1 . . . . . 2 . . . . . 3 . . . . . 2 . 1 Parts Repaired 6 | . . . . . 1 . . . . . . . . . . . 4 . . . . . 1 . . Time 295 | . . . . . 26 . . . . . . . . . . . 201 . . . . . 68 . . Parts Recycled . | . . . . . . . . . . . . . . . . . . . . . . . . . . Recycled Matter . | . . . . . . . . . . . . . . . . . . . . . . . . . . Retrieved Matter . | . . . . . . . . . . . . . . . . . . . . . . . . . . Retrieved Components . | . . . . . . . . . . . . . . . . . . . . . . . . . . Parts Scanalyzed 9 | . . . . . . . . . . . . . . . . . 2 . . . . . 2 . 5 Part Schematics Acquired 8 | . . . . . . . . . . . . . . . . . 2 . . . . . 2 . 4 Parts Damaged 1 | . . . . . . . . . . . . . . . . . . . . . . . . . 1 Bothacking | -11 -10 -9 -9 -9 -8 -8 -8 -8 -7 -7 -6 -6 -6 -6 -6 -6 -5 -5 -4 -4 -4 -4 -3 -3 -2 ------------ Run | Yrd Mat Mat Sto Gar Mat Gar Mat Gar Fac Gar Fac Ext Cet Arc Hub Gar Fac Gar Fac Was Fac Gar Res Gar Res Used RIF Installer 10 | . . . . 1 . 1 . 2 . 1 . . . . . 1 . 2 . . . 1 . 1 . Coupler Efficiency 2 | . . . . 1 . . . . . . . . . . . . . . . . . . . 1 . Hotswap 1 | . . . . . . . . . . . . . . . . . . 1 . . . . . . . Command Fork 2 | . . . . . . . . . . . . . . . . 1 . . . . . 1 . . . Threat Obfuscator 1 | . . . . . . . . . . 1 . . . . . . . . . . . . . . . Signal Jammer 1 | . . . . . . . . 1 . . . . . . . . . . . . . . . . . Zone Cloak 1 | . . . . . . . . . . . . . . . . . . 1 . . . . . . . Alert ID Control 1 | . . . . . . 1 . . . . . . . . . . . . . . . . . . . Autooverride 1 | . . . . . . . . 1 . . . . . . . . . . . . . . . . . Robots Hacked 189 | . . . . . 2 . 1 . 11 5 7 15 1 1 5 7 14 19 15 . 8 19 10 16 33 Non-combat 37 | . . . . . . . 1 . 4 . 1 5 . . 2 . 6 . 1 . 4 . 3 . 10 Combat 152 | . . . . . 2 . . . 7 5 6 10 1 1 3 7 8 19 14 . 4 19 7 16 23 Autooverrided 42 | . . . . . . . . . 1 . 2 2 . 1 . 4 2 5 4 . . 5 2 6 8 Robot Hacks Applied 186 | . . . . . 2 . 4 . 14 6 6 13 1 . 7 3 16 17 12 . 8 15 15 11 36 parse_system 17 | . . . . . . . 1 . . . . 2 1 . 1 . 3 3 . . . 1 3 1 1 find_chute 1 | . . . . . . . . . 1 . . . . . . . . . . . . . . . . ignore_repairs 8 | . . . . . . . . . . . . . . . 1 . . . . . . . . . 7 map_walls 2 | . . . . . . . . . . . . . . . 1 . . . . . . . . . 1 find_fabricator 3 | . . . . . . . . . . . . . . . . . . . . . 1 . 1 . 1 drop_inventory 13 | . . . . . . . . . . . 1 4 . . . . 2 . 1 . 1 . 2 . 2 ignore_parts 1 | . . . . . . . . . . . . . . . . . . . . . . . . . 1 purge_threat 15 | . . . . . . . 2 . 4 . . 1 . . 1 . 2 . . . . . 3 . 2 block_reporting 1 | . . . . . . . . . . . . . . . . . . . . . . . 1 . . find_garrison 8 | . . . . . . . . . 2 . 1 . . . . . 1 . 1 . 1 . . . 2 overload_power 1 | . . . . . . . . . . . . . . . . 1 . . . . . . . . . amplify_resonance 43 | . . . . . . . . . 3 4 2 1 . . 1 1 1 6 3 . 1 8 2 4 6 reboot_system 2 | . . . . . . . . . . . 1 . . . . . . 1 . . . . . . . overwrite_iff 21 | . . . . . . . . . 2 . . 3 . . . 1 1 2 4 . . 2 1 4 1 formatsys_low 12 | . . . . . . . 1 . 2 1 . . . . 1 . 3 . . . 2 . 1 . 1 formatsys_high 38 | . . . . . 2 . . . . 1 1 2 . . 1 . 3 5 3 . 2 4 1 2 11 Relay Couplers Released 110 | . . . . 4 . 4 . 7 . 13 2 . . . 4 18 1 14 4 . . 23 4 11 1 Machine Destruction 103 | . . . . 4 . 4 . 7 . 10 2 . . . . 18 1 14 4 . . 23 4 11 1 Programmers 7 | . . . . . . . . . . 3 . . . . 4 . . . . . . . . . . Attached 45 | . . . . . 1 . 1 1 4 2 4 1 . 1 1 5 2 4 1 . . 7 1 6 3 Fabnet Peak Effective % . | . . . . . . . . . . . . . . . . . . . . . . . . . . Robots Rewired 21 | . . . . . . . . . . . . 12 . . . 3 . . . . . 6 . . . Allies Hacked 7 | . . . . . . . . . 1 . . . . . . . 1 1 . . . . . 1 3 Hacks Repelled . | . . . . . . . . . . . . . . . . . . . . . . . . . . Allies | -11 -10 -9 -9 -9 -8 -8 -8 -8 -7 -7 -6 -6 -6 -6 -6 -6 -5 -5 -4 -4 -4 -4 -3 -3 -2 -------- Run | Yrd Mat Mat Sto Gar Mat Gar Mat Gar Fac Gar Fac Ext Cet Arc Hub Gar Fac Gar Fac Was Fac Gar Res Gar Res Total Allies 185 | . . . . 2 5 . 2 5 10 1 7 26 5 1 2 10 14 14 14 . 4 18 5 18 22 Largest Group 19 | . . . . 2 7 6 2 5 8 8 5 17 19 19 11 8 10 6 4 1 5 11 12 9 9 Highest-Rated Group 996 | . . . . 51 131 115 67 130 281 281 94 597 996 996 716 412 607 283 212 56 178 594 654 564 486 Highest-Rated Ally 219 | . . . . 31 31 31 57 26 40 40 40 159 159 159 96 96 96 49 58 56 56 148 148 219 80 Total Orders 95 | . . . . . . . . . 1 14 4 1 . 2 4 16 11 2 . . 5 17 . 10 8 STAY 45 | . . . . . . . . . . 6 1 1 . 1 4 8 5 1 . . 2 7 . 4 5 FOLLOW 34 | . . . . . . . . . . 4 2 . . 1 . 6 2 1 . . 2 9 . 4 3 GUARD 7 | . . . . . . . . . . 3 . . . . . 2 . . . . . . . 2 . AID 6 | . . . . . . . . . 1 1 1 . . . . . 1 . . . 1 1 . . . EXPLORE 3 | . . . . . . . . . . . . . . . . . 3 . . . . . . . . Ally Attacks 1133 | . . . . 4 10 39 1 50 58 25 60 106 32 32 110 71 73 49 55 . 22 69 58 68 141 Total Damage 34897 | . . . . 83 187 534 37 965 1150 587 1004 2537 897 1067 4273 1915 2029 1290 1753 . 846 3066 2038 3101 5538 Kills 229 | . . . . 3 2 11 1 17 15 7 5 18 6 5 25 12 9 8 9 . 6 22 11 7 30 Allies Corrupted 15 | . . . . . . . . . . . . . . . 1 . 2 3 . . . 2 . 1 6 Allies Melted 3 | . . . . . . . . . . . . . . . . . . . . . . . 2 1 . X0-1V1 Amusement Gains 241 | . 4 . . 10 . 20 . 40 . 29 . . . . 50 34 5 . 49 . . . . . . Average Entertainment 70 | . 4 2 1 7 11 26 31 56 71 96 98 50 29 16 37 69 84 51 63 100 100 100 100 100 100 Good Acts 147 | . . . 2 5 1 7 6 14 5 4 10 3 1 4 4 4 20 11 1 1 2 5 7 13 17 Bad Acts 67 | . . . . 5 2 6 1 3 2 . 1 5 1 5 2 . 8 9 1 1 1 9 . 2 3 Intel | -11 -10 -9 -9 -9 -8 -8 -8 -8 -7 -7 -6 -6 -6 -6 -6 -6 -5 -5 -4 -4 -4 -4 -3 -3 -2 ------- Run | Yrd Mat Mat Sto Gar Mat Gar Mat Gar Fac Gar Fac Ext Cet Arc Hub Gar Fac Gar Fac Was Fac Gar Res Gar Res Active Infowar (turns) 8584 | 19 1266 40 98 397 . . . . . . 16 476 541 620 780 1306 2901 124 . . . . . . . Optics 6748 | . . . . . . . . . . . . 476 541 620 780 1306 2901 124 . . . . . . . Sensors 549 | . . . . . . . . . . . . . . . 462 87 . . . . . . . . . Seismic 1820 | 19 1266 40 98 397 . . . . . . . . . . . . . . . . . . . . . Jamming 16 | . . . . . . . . . . . 16 . . . . . . . . . . . . . . Robot Analysis Total 7 | . 2 . . . 2 . 1 . . . . . . . . . . . 2 . . . . . . Derelict Logs Recovered . | . . . . . . . . . . . . . . . . . . . . . . . . . . Drone Launches 3 | . . . . . . . . . . . . . . . . . 3 . . . . . . . . Drone Recoveries 1 | . . . . . . . . . . . . . . . . . 1 . . . . . . . . Exploration | -11 -10 -9 -9 -9 -8 -8 -8 -8 -7 -7 -6 -6 -6 -6 -6 -6 -5 -5 -4 -4 -4 -4 -3 -3 -2 ------------- Run | Yrd Mat Mat Sto Gar Mat Gar Mat Gar Fac Gar Fac Ext Cet Arc Hub Gar Fac Gar Fac Was Fac Gar Res Gar Res Turns Passed 24373 | 94 1286 42 98 830 521 869 548 1129 666 717 1307 1094 541 620 780 1306 2921 1399 861 252 364 1768 1154 1100 2106 Spaces Moved 13932 | 23 612 30 40 411 274 387 317 614 409 432 868 671 240 263 457 785 1704 675 493 195 218 1148 792 640 1234 Core . | . . . . . . . . . . . . . . . . . . . . . . . . . . Treads 1582 | . 509 . . 372 274 205 . . . . 2 . 141 79 . . . . . . . . . . . Legs 27 | 23 4 . . . . . . . . . . . . . . . . . . . . . . . . Wheels 12323 | . 99 30 40 39 . 182 317 614 409 432 866 671 99 184 457 785 1704 675 493 195 218 1148 792 640 1234 Hover . | . . . . . . . . . . . . . . . . . . . . . . . . . . Flight . | . . . . . . . . . . . . . . . . . . . . . . . . . . Fastest Speed 95 | 120 95 125 125 110 160 130 115 130 130 130 105 105 120 120 120 105 115 135 135 120 120 120 120 130 120 Average Speed 130 | 120 149 125 125 155 160 146 128 130 130 130 122 119 190 139 120 116 134 137 135 126 120 120 125 130 124 Slowest Speed 240 | 120 160 125 125 160 160 240 130 130 130 130 160 120 240 240 120 135 165 165 135 135 120 120 150 130 180 Overloaded Moves . | . . . . . . . . . . . . . . . . . . . . . . . . . . Propulsion Burnouts . | . . . . . . . . . . . . . . . . . . . . . . . . . . Robots Hopped . | . . . . . . . . . . . . . . . . . . . . . . . . . . Potential Cave-ins 14 | . . . . . . . . . . . . . . . . . . 10 . . . . . . 4 Cave-ins Triggered . | . . . . . . . . . . . . . . . . . . . . . . . . . . Exploration Rate (%) 51 | 3 87 6 10 60 24 51 31 76 18 71 28 87 77 85 51 89 46 72 21 87 10 92 23 90 44 Regions Visited 25 Branch Regions 5 Pre-discovered Areas 6 | . 1 . . . 1 . . . 1 . 3 . . . . . . . . . . . . . . Known Exits Taken 9 | . . . 1 . 1 . 1 . 1 . . . . 1 1 . 1 . . . 1 . 1 . . Unknown Exits Taken 6 | 1 1 1 . . . . . . . . 1 1 1 . . . . . . . . . . . . Scrap Searched . | . . . . . . . . . . . . . . . . . . . . . . . . . . Spaces Dug 64 | . . . . 2 . . . . . . 3 . . . 1 . 16 1 1 . 2 5 2 8 23 Terrain Destroyed 854 | . 11 . . 13 20 128 . 84 . 88 46 11 . . 13 108 98 16 14 . 10 20 15 29 130 Melee 2 | . . . . 2 . . . . . . . . . . . . . . . . . . . . . Projectile 242 | . . . . . . . . 2 . . 16 11 . . 13 3 60 16 14 . 10 20 9 13 55 AOE 610 | . 11 . . 11 20 128 . 82 . 88 30 . . . . 105 38 . . . . . 6 16 75 Terrain Rammed . | . . . . . . . . . . . . . . . . . . . . . . . . . . Walls Destroyed . | . . . . . . . . . . . . . . . . . . . . . . . . . . Machines Disabled . | . . . . . . . . . . . . . . . . . . . . . . . . . . Actions | -11 -10 -9 -9 -9 -8 -8 -8 -8 -7 -7 -6 -6 -6 -6 -6 -6 -5 -5 -4 -4 -4 -4 -3 -3 -2 --------- Run | Yrd Mat Mat Sto Gar Mat Gar Mat Gar Fac Gar Fac Ext Cet Arc Hub Gar Fac Gar Fac Was Fac Gar Res Gar Res Total 18492 | 71 888 34 67 503 343 584 378 822 508 533 1021 884 316 482 648 1060 2186 1056 620 203 294 1481 933 866 1711 Wait 2040 | 39 184 . 16 11 32 108 13 53 22 29 39 77 48 173 139 67 230 192 49 . 31 123 75 87 203 Move 13914 | 22 611 29 40 410 273 386 317 613 409 431 867 670 239 262 456 784 1704 674 493 194 218 1147 792 639 1234 Hop . | . . . . . . . . . . . . . . . . . . . . . . . . . . Pick Up 202 | . 15 2 . 5 5 7 1 8 6 9 12 10 6 3 2 14 19 15 4 4 . 18 6 11 20 Fast Attach 110 | 1 2 . . 3 5 3 2 4 1 . 9 5 1 4 3 13 15 5 2 . 3 2 6 4 17 Attach 83 | . 3 2 . 5 . 4 . 6 5 . 7 2 1 6 2 3 10 7 2 2 . 2 2 3 9 Detach 17 | . . . . 1 . 2 . 1 1 . 1 1 . 1 . . 4 2 . . . . . . 3 Swap 111 | . 9 1 . 7 7 4 3 8 5 2 7 3 3 5 . 11 7 6 . . 1 6 6 3 7 Drop 225 | . 12 . . 5 10 7 1 8 6 6 15 11 8 6 1 23 23 15 3 3 3 15 7 13 24 Fire 1403 | 9 47 . 11 45 7 61 35 59 37 53 61 78 10 . 45 76 171 84 59 . 37 97 39 90 192 Melee 68 | . . . . 10 2 1 4 . . . . . . 22 . 29 . . . . . . . . . Ram 7 | . . . . . . . 1 . . . 2 . . . . . 3 . . . . . . . 1 Kick . | . . . . . . . . . . . . . . . . . . . . . . . . . . Crush 9 | . 5 . . 1 . 1 . . . . 1 1 . . . . . . . . . . . . . Escape Stasis 257 | . . . . . . . . 62 16 . . . . . . 40 . 48 8 . . 67 . 16 . Rewire 38 | . . . . . 2 . 1 . . 3 . 26 . . . . . . . . 1 4 . . 1 Trap . | . . . . . . . . . . . . . . . . . . . . . . . . . . Miscellaneous 8 | . . . . . . . . . . . . . . . . . . 8 . . . . . . . Route ------- -11/Scrapyard -10/Materials (discovered 5 exits: [*Mat x3] / [*Min] / [*Sub]) -9/Materials -9/Storage -9/Garrison (discovered 3 exits: *Mat x3) -8/Materials -8/Garrison (discovered 3 exits: *Mat x3) -8/Materials (discovered 2 exits: *Fac / Gar) -8/Garrison (discovered 3 exits: *Fac x3) -7/Factory (discovered 3 exits: *Fac / Low / Gar) -7/Garrison (discovered 3 exits: *Fac x3) -6/Factory (discovered 2 exits: *Fac / *Ext) -6/Extension (discovered 3 exits: *Fac x2 / *Cet) -6/Cetus (discovered 2 exits: *Fac / [*Arc]) -6/Archives (discovered 3 exits: *Fac / *Hub x2) -6/Hub_04(d) (discovered 5 exits: *Fac x4 / Gar) -6/Garrison (discovered 3 exits: *Fac x3) -5/Factory (discovered 6 exits: *Fac x3 / *Upp x2 / Gar) -5/Garrison (discovered 3 exits: *Fac x3) -4/Factory -4/Waste -4/Factory -4/Garrison (discovered 3 exits: *Res x3) -3/Research (discovered 3 exits: *Res / Qua / Gar) -3/Garrison (discovered 3 exits: *Res x3) -2/Research (discovered 3 exits: Acc x2 / [*Tes]) History --------- Turn | Location | Event 14 | -11/Scrapyard | Discovered new exit (range 3) 95 | -11/Scrapyard | Entered Materials 313 | -10/Materials | Build established: Mutant 472 | -10/Materials | Discovered new exit (range 8) 517 | -10/Materials | Discovered new exit (range 13) 595 | -10/Materials | Derelicts attacked the area 725 | -10/Materials | Central database locked down 733 | -10/Materials | Discovered new exit (range 3) 973 | -10/Materials | Discovered new exit (range 4) 1348 | -10/Materials | Discovered new exit (range 8) 1359 | -10/Materials | Prayed at D.C.S.S. Altar Unit 1381 | -10/Materials | Entered another Materials area 1381 | -9/Materials | Evolved 2 slots: Propulsion x1, Utility x1 1399 | -9/Materials | Discovered new exit (range 16) 1423 | -9/Materials | Entered Storage 1464 | -9/Storage | Garrison activated, responded to threat 1520 | -9/Storage | Mass support permanently improved by X0-1V1 (+6; -200 max core) 1521 | -9/Storage | Identified exit to Garrison 1521 | -9/Storage | Entered Garrison 1558 | -9/Garrison | Triggered checkpoint 1678 | -9/Garrison | Installed Relay Interface Framework 1783 | -9/Garrison | Triggered checkpoint 1819 | -9/Garrison | X0-1V1 sent hostile S-10 Pest (x3) 1876 | -9/Garrison | Destroyed 7 combat bots 1904 | -9/Garrison | Core integrity fell below 50% 1911 | -9/Garrison | X0-1V1 upgraded hostiles (x1) 1929 | -9/Garrison | Core integrity fell below 20% 1994 | -9/Garrison | Discovered new exit (range 12) 2042 | -9/Garrison | Weapon slot count permanently improved by X0-1V1 (+1) 2156 | -9/Garrison | Rescued a captive Derelict 2157 | -9/Garrison | Rescued a captive Derelict 2193 | -9/Garrison | Triggered checkpoint 2269 | -9/Garrison | Discovered new exit (range 55) 2269 | -9/Garrison | Discovered new exit (range 79) 2269 | -9/Garrison | Discovered new exit (range 13) 2270 | -9/Garrison | X0-1V1 vaporized surrounding terrain (radius 19) 2293 | -9/Garrison | Expanded RIF knowledge: Coupler Efficiency 2299 | -9/Garrison | Garrison Relay disabled 2351 | -9/Garrison | Entered Materials 2351 | -8/Materials | Accompanied by 2 allies 2351 | -8/Materials | Evolved 2 slots: Utility x2 2473 | -8/Materials | Core integrity permanently improved by X0-1V1 (+250) 2619 | -8/Materials | Repaired Lgt. Treads 2764 | -8/Materials | Identified exit to Garrison 2785 | -8/Materials | Build established: Tank 2872 | -8/Materials | Entered Garrison 2872 | -8/Garrison | Accompanied by 6 allies 2924 | -8/Garrison | Triggered checkpoint 2960 | -8/Garrison | Garrison Relay disabled 3006 | -8/Garrison | X0-1V1 destroyed Phase Generator 3006 | -8/Garrison | Phase Generator disabled 3069 | -8/Garrison | Triggered checkpoint 3069 | -8/Garrison | Triggered checkpoint 3088 | -8/Garrison | X0-1V1 caused items to flee you 3119 | -8/Garrison | Triggered checkpoint 3123 | -8/Garrison | Lost 3 allies 3125 | -8/Garrison | Triggered checkpoint 3228 | -8/Garrison | Items stopped fleeing you 3231 | -8/Garrison | Build established: Mutant 3301 | -8/Garrison | Identified exit to Materials 3301 | -8/Garrison | X0-1V1 revealed exit location to -8/Materials 3363 | -8/Garrison | Discovered exit to Materials (range 34) 3363 | -8/Garrison | Discovered exit to Materials (range 76) 3363 | -8/Garrison | Discovered exit to Materials (range 33) 3402 | -8/Garrison | Triggered checkpoint 3709 | -8/Garrison | Expanded RIF knowledge: Alert ID Control 3741 | -8/Garrison | Entered Materials 4143 | -8/Materials | X0-1V1 sent allied Chaos Knight (x1) 4172 | -8/Materials | X0-1V1 put everyone to sleep 4206 | -8/Materials | Discovered new exit (range 3) 4232 | -8/Materials | Build established: Scavenger-Tank 4289 | -8/Materials | Identified exit to Garrison 4289 | -8/Materials | Entered Garrison 4319 | -8/Garrison | Expanded RIF knowledge: Autooverride 4422 | -8/Garrison | Triggered checkpoint 4528 | -8/Garrison | Triggered checkpoint 4559 | -8/Garrison | Weapon slot count temporarily expanded by X0-1V1 (+1) 4586 | -8/Garrison | X0-1V1 sent hostile Y-45 Defender (x1) 4594 | -8/Garrison | Lost 4 parts (1p2u1w) 4605 | -8/Garrison | Identified exit to Factory 4605 | -8/Garrison | X0-1V1 revealed exit location to -7/Factory 4641 | -8/Garrison | Garrison Relay disabled 4667 | -8/Garrison | Triggered checkpoint 4748 | -8/Garrison | Phase Generator disabled 4770 | -8/Garrison | Discovered exit to Factory (range 13) 4844 | -8/Garrison | Expanded RIF knowledge: Signal Jamming 4927 | -8/Garrison | Triggered checkpoint 4940 | -8/Garrison | X0-1V1 sent allied Guru (x5) 5046 | -8/Garrison | Build established: Bothacker-Gunner 5055 | -8/Garrison | Triggered checkpoint 5110 | -8/Garrison | Weapon slot count reverted to normal (-1) 5195 | -8/Garrison | Triggered checkpoint 5219 | -8/Garrison | Triggered checkpoint 5302 | -8/Garrison | Garrison Relay disabled 5401 | -8/Garrison | Discovered exit to Factory (range 14) 5418 | -8/Garrison | Entered Factory 5418 | -7/Factory | Accompanied by 1 ally 5418 | -7/Factory | Evolved 2 slots: Utility x2 5616 | -7/Factory | Build established: Botlord-Gunner 5647 | -7/Factory | X0-1V1 sent you to a vault 5766 | -7/Factory | X0-1V1 put everyone to sleep 5867 | -7/Factory | Identified exit to Lower Caves 5867 | -7/Factory | X0-1V1 revealed exit location to -7/Lower Caves 5992 | -7/Factory | Build established: Bothacker-Gunner 6014 | -7/Factory | X0-1V1 vaporized surrounding terrain (radius 16) 6016 | -7/Factory | X0-1V1 made a cryptic comment about sterilization and BL-4Z3 6023 | -7/Factory | Discovered new exit (range 15) 6080 | -7/Factory | Identified exit to Garrison 6084 | -7/Factory | Entered Garrison 6084 | -7/Garrison | Accompanied by 7 allies 6138 | -7/Garrison | Triggered checkpoint 6163 | -7/Garrison | Phase Generator disabled 6210 | -7/Garrison | Garrison Relay disabled 6273 | -7/Garrison | Triggered checkpoint 6293 | -7/Garrison | Triggered checkpoint 6304 | -7/Garrison | P-70 Sage assimilated allied Smith 4a 6305 | -7/Garrison | Triggered checkpoint 6350 | -7/Garrison | Lost 4 allies 6373 | -7/Garrison | Triggered checkpoint 6401 | -7/Garrison | Expanded RIF knowledge: Threat Obfuscation 6494 | -7/Garrison | Discovered new exit (range 5) 6516 | -7/Garrison | Triggered checkpoint 6533 | -7/Garrison | Build established: Botlord-Gunner 6572 | -7/Garrison | Garrison Relay disabled 6710 | -7/Garrison | Discovered new exit (range 10) 6740 | -7/Garrison | Garrison Relay disabled 6770 | -7/Garrison | Discovered new exit (range 40) 6770 | -7/Garrison | Discovered new exit (range 15) 6770 | -7/Garrison | Discovered new exit (range 48) 6801 | -7/Garrison | Entered Factory 6801 | -6/Factory | Accompanied by 3 allies 6801 | -6/Factory | Evolved 2 slots: Propulsion x1, Utility x1 7013 | -6/Factory | X0-1V1 activates XOMVISION 7109 | -6/Factory | Build established: Botlord-Tank 7142 | -6/Factory | X0-1V1 sent allied S-27 Virus (x4) 7386 | -6/Factory | Fabricated Hvy. Assault Cannon (x1) 7444 | -6/Factory | Lost 3 allies 7600 | -6/Factory | X0-1V1 added 0b10 threat records associated with you (major) 7641 | -6/Factory | Discovered new exit (range 6) 7809 | -6/Factory | Identified exit to Factory 7986 | -6/Factory | X0-1V1 activates XOMVISION 8064 | -6/Factory | X0-1V1 foreshadows a heat wave 8101 | -6/Factory | Discovered new exit (range 5) 8108 | -6/Factory | Entered Extension 8108 | -6/Extension | Accompanied by 2 allies 8257 | -6/Extension | Rescued a captive Derelict 8263 | -6/Extension | Rescued a captive Derelict 8448 | -6/Extension | X0-1V1 revealed exit location to -5/Factory 8752 | -6/Extension | Spotted B-75 Beast 8786 | -6/Extension | Allies destroyed B-75 Beast 8801 | -6/Extension | Spotted B-75 Beast 8813 | -6/Extension | Allies destroyed B-75 Beast 8816 | -6/Extension | Lost 4 allies 8869 | -6/Extension | X0-1V1 sent you into danger 8922 | -6/Extension | Rescued a captive Derelict 8930 | -6/Extension | X0-1V1 activates XOMVISION 8935 | -6/Extension | Rescued a captive Derelict 8936 | -6/Extension | Rescued a captive Derelict 8982 | -6/Extension | Rescued A7 9079 | -6/Extension | Rescued a captive Derelict 9127 | -6/Extension | Discovered exit to Factory (range 10) 9128 | -6/Extension | Discovered new exit (range 6) 9202 | -6/Extension | X0-1V1 announced a LAN party 9202 | -6/Extension | Entered Cetus 9202 | -6/Cetus | Accompanied by 14 allies (A7) 9207 | -6/Cetus | Acquired a Cetus Manufacturing Module code from A7 9220 | -6/Cetus | Spotted Cetus Guard 9220 | -6/Cetus | Spotted Cetus Guard 9220 | -6/Cetus | Spotted Cetus Guard 9220 | -6/Cetus | Spotted Cetus Guard 9227 | -6/Cetus | Allies destroyed Cetus Guard 9232 | -6/Cetus | Destroyed Cetus Guard 9233 | -6/Cetus | Destroyed Cetus Guard 9234 | -6/Cetus | Allies destroyed Cetus Guard 9293 | -6/Cetus | Started Cetus Manufacturing Module 9307 | -6/Cetus | Escorted A7 to Cetus Mainframe 9318 | -6/Cetus | Manufactured an Enhanced Grunt 9319 | -6/Cetus | Discovered new exit (range 19) 9343 | -6/Cetus | Manufactured an Enhanced Grunt 9346 | -6/Cetus | Spotted Cetus Guard 9346 | -6/Cetus | Spotted Cetus Guard 9346 | -6/Cetus | Spotted Cetus Guard 9346 | -6/Cetus | Spotted Cetus Guard 9355 | -6/Cetus | Allies destroyed Cetus Guard 9358 | -6/Cetus | Destroyed Cetus Guard 9359 | -6/Cetus | Destroyed Cetus Guard 9362 | -6/Cetus | Destroyed Cetus Guard 9362 | -6/Cetus | Discovered exit to Factory (range 19) 9368 | -6/Cetus | Manufactured an Enhanced Grunt 9385 | -6/Cetus | Met Revision 17 9393 | -6/Cetus | Manufactured an Enhanced Grunt 9418 | -6/Cetus | Manufactured an Enhanced Grunt 9672 | -6/Cetus | Build established: Commander-Tank 9743 | -6/Cetus | Entered Archives 9743 | -6/Archives | Accompanied by 19 allies (A7) 9748 | -6/Archives | Received a hacking code to weaken MAIN.C 9809 | -6/Archives | Lost 5 allies 9823 | -6/Archives | Discovered exit to Factory (range 16) 9874 | -6/Archives | Discovered new exit (range 14) 9922 | -6/Archives | Identified exit to Hub_04(d) 9922 | -6/Archives | X0-1V1 revealed exit location to -6/Hub_04(d) 9927 | -6/Archives | X0-1V1 mutated your Propulsion slot to Power slot 10082 | -6/Archives | Build established: Bothacker-Mutant 10082 | -6/Archives | X0-1V1 mutated your Weapon slot to Utility slot 10363 | -6/Archives | Entered Hub_04(d) 10363 | -6/Hub_04(d) | Accompanied by 11 allies 10456 | -6/Hub_04(d) | Discovered exit to Factory (range 14) 10523 | -6/Hub_04(d) | Identified exit to Garrison 10606 | -6/Hub_04(d) | Discovered exit to Factory (range 13) 10606 | -6/Hub_04(d) | Discovered exit to Factory (range 17) 10817 | -6/Hub_04(d) | X0-1V1 destroyed Network Hub 10817 | -6/Hub_04(d) | Network Hub disabled 10918 | -6/Hub_04(d) | Discovered exit to Factory (range 14) 10968 | -6/Hub_04(d) | Build established: Commander-Skirmisher 11069 | -6/Hub_04(d) | Network Hub disabled 11086 | -6/Hub_04(d) | Network Hub disabled 11106 | -6/Hub_04(d) | Garrison activated, responded to threat 11143 | -6/Hub_04(d) | Entered Garrison 11143 | -6/Garrison | Accompanied by 4 allies 11165 | -6/Garrison | Triggered checkpoint 11193 | -6/Garrison | Triggered checkpoint 11196 | -6/Garrison | Found Scimitar of Distortion 11212 | -6/Garrison | Garrison Relay disabled 11389 | -6/Garrison | Found Relay Coupler [Proto] 11391 | -6/Garrison | Found Relay Coupler [Proto] 11434 | -6/Garrison | Triggered checkpoint 11434 | -6/Garrison | Triggered checkpoint 11445 | -6/Garrison | Spotted B-75 Beast 11470 | -6/Garrison | Allies destroyed B-75 Beast 11492 | -6/Garrison | Lost 4 allies 11514 | -6/Garrison | Build established: Botlord-Mutant 11529 | -6/Garrison | Triggered checkpoint 11625 | -6/Garrison | Triggered checkpoint 11634 | -6/Garrison | Garrison Relay disabled 11655 | -6/Garrison | Expanded RIF knowledge: Command Fork 11694 | -6/Garrison | Triggered checkpoint 11743 | -6/Garrison | Found embedded Infiltrators 11757 | -6/Garrison | Triggered checkpoint 11775 | -6/Garrison | Garrison Relay disabled 11802 | -6/Garrison | Discovered exit to Factory (range 17) 11877 | -6/Garrison | Found Quantum Capacitor 12012 | -6/Garrison | Phase Generator disabled 12045 | -6/Garrison | Discovered exit to Factory (range 3) 12092 | -6/Garrison | Garrison Relay disabled 12105 | -6/Garrison | Triggered checkpoint 12363 | -6/Garrison | Discovered exit to Factory (range 38) 12363 | -6/Garrison | Discovered exit to Factory (range 23) 12363 | -6/Garrison | Discovered exit to Factory (range 57) 12449 | -6/Garrison | Entered Factory 12449 | -5/Factory | Accompanied by 6 allies 12449 | -5/Factory | Evolved 2 slots: Utility x1, Weapon x1 12731 | -5/Factory | X0-1V1 sent you to a vault 12890 | -5/Factory | Identified exit to Upper Caves 13072 | -5/Factory | Lost 4 allies 13149 | -5/Factory | X0-1V1 sent hostile H-66 Slayer (x3) 13152 | -5/Factory | Build established: Botlord-Tank 13347 | -5/Factory | Found Hvy. Reactive Plating 13427 | -5/Factory | Repaired Arm. Huge Wheel+ 13441 | -5/Factory | X0-1V1 activates XOMVISION 13467 | -5/Factory | X0-1V1 downgraded hostiles (x2) 13945 | -5/Factory | X0-1V1 redirected Transport squads to designated parking area 13987 | -5/Factory | Repaired Hvy. Linear Accelerator 14403 | -5/Factory | X0-1V1 announced a LAN party 14626 | -5/Factory | Discovered new exit (range 19) 14661 | -5/Factory | Watched by a mysterious "MATRIX" hacker 14788 | -5/Factory | Discovered new exit (range 14) 14788 | -5/Factory | Identified exit to Factory 14788 | -5/Factory | X0-1V1 revealed exit location to -4/Factory 15100 | -5/Factory | Repaired Broken Hvy. Linear Accelerator 15151 | -5/Factory | Repaired Hvy. Reactive Plating 15370 | -5/Factory | Identified exit to Garrison 15370 | -5/Factory | Entered Garrison 15432 | -5/Garrison | Expanded RIF knowledge: Zone Cloak 15470 | -5/Garrison | X0-1V1 mutated your Utility slot to Propulsion slot 15640 | -5/Garrison | Garrison Relay disabled 15648 | -5/Garrison | X0-1V1 vaporized surrounding terrain (radius 16) 15671 | -5/Garrison | X0-1V1 revealed exit location to -4/Factory 15682 | -5/Garrison | Triggered checkpoint 15848 | -5/Garrison | Discovered exit to Factory (range 44) 15848 | -5/Garrison | Discovered exit to Factory (range 12) 15848 | -5/Garrison | Discovered exit to Factory (range 69) 15868 | -5/Garrison | Triggered checkpoint 15912 | -5/Garrison | X0-1V1 sent hostile H-66 Slayer (x2) 15943 | -5/Garrison | Garrison Relay disabled 16004 | -5/Garrison | Rescued a captive Derelict 16006 | -5/Garrison | Rescued a captive Derelict 16066 | -5/Garrison | Triggered checkpoint 16088 | -5/Garrison | Triggered checkpoint 16110 | -5/Garrison | X0-1V1 activates XOMVISION 16150 | -5/Garrison | Triggered checkpoint 16158 | -5/Garrison | Expanded RIF knowledge: Hotswap 16218 | -5/Garrison | Triggered checkpoint 16218 | -5/Garrison | Garrison Relay disabled 16325 | -5/Garrison | X0-1V1 whisked you away to safety 16360 | -5/Garrison | Triggered checkpoint 16438 | -5/Garrison | X0-1V1 caused items to flee you 16571 | -5/Garrison | X0-1V1 activates XOMVISION 16603 | -5/Garrison | Items stopped fleeing you 16635 | -5/Garrison | Found Relay Coupler [Proto] 16639 | -5/Garrison | Found Relay Coupler [Proto] 16769 | -5/Garrison | Entered Factory 16769 | -4/Factory | Accompanied by 1 ally 16769 | -4/Factory | Evolved 2 slots: Utility x2 16827 | -4/Factory | X0-1V1 vaporized surrounding terrain (radius 20) 17285 | -4/Factory | Garrison activated, responded to threat 17367 | -4/Factory | Central database locked down 17464 | -4/Factory | Spotted B-86 Titan 17569 | -4/Factory | Spotted B-86 Titan 17630 | -4/Factory | Sucked down chute 17630 | -4/Factory | Entered Waste 17630 | -4/Waste | The area was eerily silent 17635 | -4/Waste | 1 allies followed down the chute 17652 | -4/Waste | Identified exit to Factory 17652 | -4/Waste | X0-1V1 revealed exit location to -4/Factory 17882 | -4/Waste | Entered Factory 17882 | -4/Factory | Accompanied by 1 ally 18157 | -4/Factory | X0-1V1 activates XOMVISION 18246 | -4/Factory | Identified exit to Garrison 18246 | -4/Factory | Entered Garrison 18246 | -4/Garrison | Accompanied by 4 allies 18298 | -4/Garrison | Triggered checkpoint 18311 | -4/Garrison | Garrison Relay disabled 18350 | -4/Garrison | Expanded RIF knowledge: Command Fork 18382 | -4/Garrison | Triggered checkpoint 18410 | -4/Garrison | Triggered checkpoint 18462 | -4/Garrison | Lost 7 allies 18478 | -4/Garrison | Triggered checkpoint 18523 | -4/Garrison | Garrison Relay disabled 18544 | -4/Garrison | Triggered checkpoint 18562 | -4/Garrison | Discovered new exit (range 10) 18605 | -4/Garrison | Spotted Striker 18605 | -4/Garrison | Spotted Striker 18755 | -4/Garrison | Garrison Relay disabled 18820 | -4/Garrison | Triggered checkpoint 18834 | -4/Garrison | Triggered checkpoint 18907 | -4/Garrison | Discovered new exit (range 10) 18945 | -4/Garrison | Triggered checkpoint 18959 | -4/Garrison | Garrison Relay disabled 19173 | -4/Garrison | X0-1V1 mutated your Power slot to Weapon slot 19196 | -4/Garrison | Triggered checkpoint 19262 | -4/Garrison | Triggered checkpoint 19275 | -4/Garrison | Garrison Relay disabled 19300 | -4/Garrison | Garrison Relay disabled 19346 | -4/Garrison | Discovered new exit (range 12) 19347 | -4/Garrison | Spotted B-75 Beast 19353 | -4/Garrison | Rewired B-90 Cyclops 19355 | -4/Garrison | Allies destroyed B-75 Beast 19530 | -4/Garrison | Spotted B-86 Titan 19603 | -4/Garrison | X0-1V1 vaporized surrounding terrain (radius 17) 19783 | -4/Garrison | Allies destroyed B-86 Titan 19803 | -4/Garrison | Found Relay Coupler [Proto] 19807 | -4/Garrison | Found Relay Coupler [Proto] 19811 | -4/Garrison | Found Relay Coupler [Proto] 20014 | -4/Garrison | Entered Research 20014 | -3/Research | Accompanied by 10 allies 20014 | -3/Research | Evolved 2 slots: Power x1, Utility x1 20159 | -3/Research | Discovered new exit (range 9) 20175 | -3/Research | X0-1V1 released a cloud of subatomizers 20214 | -3/Research | Revision forces began assault on 0b10 20230 | -3/Research | Found Gamma Bomb Array 20233 | -3/Research | Spotted B-86 Titan 20267 | -3/Research | Destroyed B-86 Titan 20294 | -3/Research | Lost 5 allies 20333 | -3/Research | Fabricated Adv. Weapon Cycler (x2) 20362 | -3/Research | Met up with Revision 17++ 20609 | -3/Research | Identified exit to Quarantine 20609 | -3/Research | X0-1V1 revealed exit location to -3/Quarantine 20617 | -3/Research | Repaired Adv. Remote Force Field? 20675 | -3/Research | Found Prototype Processor 20675 | -3/Research | Identified Exp. Signal Interpreter 20713 | -3/Research | Found Prototype Processor 20713 | -3/Research | Identified Exp. Targeting Computer 20714 | -3/Research | Research terminal network offline 20772 | -3/Research | Lost 3 allies 21050 | -3/Research | Spotted Striker 21053 | -3/Research | Allies destroyed Striker 21151 | -3/Research | Identified exit to Garrison 21168 | -3/Research | Entered Garrison 21168 | -3/Garrison | Accompanied by 6 allies 21227 | -3/Garrison | Triggered checkpoint 21254 | -3/Garrison | Garrison Relay disabled 21289 | -3/Garrison | Garrison Relay disabled 21408 | -3/Garrison | Triggered checkpoint 21419 | -3/Garrison | Spotted B-86 Titan 21420 | -3/Garrison | Triggered checkpoint 21424 | -3/Garrison | Triggered checkpoint 21427 | -3/Garrison | X0-1V1 upgraded ally (x4) 21432 | -3/Garrison | Allies destroyed B-86 Titan 21462 | -3/Garrison | Lost 7 allies 21601 | -3/Garrison | Weapon slot count temporarily expanded by X0-1V1 (+1) 21603 | -3/Garrison | Discovered new exit (range 12) 21788 | -3/Garrison | Triggered checkpoint 21827 | -3/Garrison | Discovered new exit (range 12) 21838 | -3/Garrison | Expanded RIF knowledge: Coupler Efficiency 21875 | -3/Garrison | Triggered checkpoint 21901 | -3/Garrison | Garrison Relay disabled 21964 | -3/Garrison | Identified exit to Research 21964 | -3/Garrison | X0-1V1 revealed exit location to -2/Research 22006 | -3/Garrison | Triggered checkpoint 22087 | -3/Garrison | Weapon slot count reverted to normal (-1) 22095 | -3/Garrison | Spotted B-86 Titan 22109 | -3/Garrison | X0-1V1 activates XOMVISION 22123 | -3/Garrison | Destroyed B-86 Titan 22250 | -3/Garrison | X0-1V1 rewrote Warden 8c IFF filter 22268 | -3/Garrison | Entered Research 22268 | -2/Research | Accompanied by 5 allies 22268 | -2/Research | Evolved 2 slots: Utility x2 22290 | -2/Research | Identified exit to Access 22290 | -2/Research | X0-1V1 revealed exit location to -1/Access 22330 | -2/Research | Central database locked down 22451 | -2/Research | X0-1V1 put everyone to sleep 22934 | -2/Research | P-80 Master assimilated allied Warden 8d 22981 | -2/Research | Found Hvy. Reactive Plating 23047 | -2/Research | Lost 3 allies 23050 | -2/Research | X0-1V1 woke everyone up 23289 | -2/Research | X0-1V1 activates XOMVISION 23327 | -2/Research | X0-1V1 vaporized surrounding terrain (radius 16) 23343 | -2/Research | System corruption reached 10% 23351 | -2/Research | P-80 Master assimilated allied Warden 9a 23367 | -2/Research | P-80 Master assimilated allied Director 9a 23659 | -2/Research | Spotted B-90 Cyclops 23719 | -2/Research | Lost 3 allies 23859 | -2/Research | X0-1V1 revealed exit location to -1/Access 24041 | -2/Research | Found Prototype Processor 24041 | -2/Research | Identified Exp. Terrain Scan Processor 24154 | -2/Research | Lost 3 allies 24191 | -2/Research | Lost 3 parts (1n1u1w) 24212 | -2/Research | Found Quantum Capacitor 24215 | -2/Research | Lost 4 allies 24370 | -2/Research | X0-1V1 sent you to a vault 24372 | -2/Research | Found Alien Artifact 24372 | -2/Research | Identified Terrabomb 24372 | -2/Research | Used Terrabomb 24372 | -2/Research | Discovered new exit (range 19) 24374 | -2/Research | Self-destructed Last Messages --------------- Loaded successfully: M-28 Smith Tier: 3 Time: 38 Initiate build sequence. >>Build Authchip [R/NC] accepted. Building M-28 Smith... ETC: 38 24358_ System corrupted: Matter fused (-8). 24370_ X0-1V1: "Someone left a few trinkets here." 24372_ Acquired Alien Artifact. 24372_ Identified Terrabomb. 24372_ Terrabomb activated. 24372_ EXIT=FOUND 24372_ U-05 Engineer builds a Wall. 24373_ C-30 ARC bursts open, deploying its payload. 24373_ P-80 Master unfolds itself. Map ----- +----------------------------------------------------+ | ?????????????????????????????????????????????????? | | ?????????????????????????????????????????????????? | | ?????????????????????????????????????????????????? | | ?????????????????????????????????????????????????? | | ?????????????????????????????????????????????????? | | ??????????????????????? ?????????????????????? | | ????????????????????? ;???????????????????? | | ?????????????????? ! =; ????????????????? | | ????????????????; ;; ;;??????????????? | | ????????????? ; /// ;; ;; ???????????? | | ???????????# ; // ;; ;; ?????????? | | ??????????# ; // ;; ;; ! ????????? | | ?????????? ; ;; ;;;;;;;;????????? | | ?????????;;;;;;;;;;;;;;;;;;;;;;k ; ???????? | | ?????????; ; ; ; ???????? | | ?????????; ; ; ; ???????? | | ???????? ; ; ; ; ???????? | | ???????? ; ! ; ;;; ;;;;;;;;????????? | | ??????? ; ; ; ?????????? | | ??????? ; = ; ; ??????????? | | ??????? ; ; ; ??????????? | | ?????? ; ; ; k ""G"" ????? | | ??????? ; ; ; " " ????? | | ???????????? ;% ;p% ???? | | ?????#;;;;;;;;;;;+;;;;;;;;;;;; ???? | | ????? ; ; !===@ ; ! ???? | | ????? ; ;]& !//= ; ???? | | ????? ] ; ; [= =![ !+ ???? | | ?????? + ; ! ; ? """ ????? | | ?????? ] ?? ; ;%* [ ; ??"" ? ????? | | ????????? ; ;;;;;;;;;;; ???????????????? | | ??????? ; ; ;;;; ?????????????? | | ???????;;;;;;;; ; ; ????????????? | | ???????? ; ; ; ??????????? | | ???????? ; ; ; ;;;;;;;;;;+?????????? | | ????????? ; ; ; ; ; ????????? | | ?????????;;;;;; ; ; ; ; ???????? | | ????????? ;; ; ; ; ; ???????? | | ??????????= ;; ;; ;;; ;;; ; ????????? | | ?????????? ; ; ; ; ; *????????? | | ??????????? ; ;;;;; ; ; ?????????? | | ?????????????+ Y ; ;;;???????????? | | ???????????????? < u H ; ??????????????? | | ?????????????????? #;;;; ; ????????????????? | | ????????????????????? ; ???????????????????? | | ???????????????????????##; ?????????????????????? | | ?????????????????????????????????????????????????? | | ?????????????????????????????????????????????????? | | ?????????????????????????????????????????????????? | | ?????????????????????????????????????????????????? | +----------------------------------------------------+ Best States ------------- Heat Dissipation 122 Energy Generation 77 Energy Capacity 1795 Matter Stores 949 Matter Capacity 1000 Sight Range 26 Robot Scan Range 15 Terrain Scan Density 10 Jamming Range 12 Armor Coverage 1200 Resistance: KI 55 Resistance: TH 30 Core Shielding 20 Utility Shielding 66 Weapon Cycling 25 Evasion (%) 55 Targeting Accuracy 16 Target Analysis 8 Core Analysis 6 Recoil Reduction 3 Kinecelleration 40 Offensive Hacking 22 Defensive Hacking 12 Relay Coupler Types 6 Relay Coupler Value 367 Authchip Count 1 Item Schematics ----------------- Huge Storage Unit | -8/Materials | Hacked Hvy. Assault Cannon | -8/Materials | Hacked Hvy. Armor Plating | -7/Factory | Hacked Remote Force Field | -5/Factory | Hacked Hvy. Reactive Plating | -5/Factory | Scanalyzed Hvy. Linear Accelerator | -5/Factory | Scanalyzed Adv. Remote Force Field | -3/Research | Scanalyzed Arm. Huge Wheel | -3/Research | Scanalyzed Adv. Weapon Cycler | -3/Research | Extracted Adv. Remote Datajack | -2/Research | Scanalyzed Gamma Bomb Array | -2/Research | Scanalyzed Enh. Nova Cannon | -2/Research | Scanalyzed Centrium Medium Armor Plating | -2/Research | Scanalyzed Robot Schematics ------------------ M-28 Smith | -8/Materials | Hacked Fabricated ------------ Hvy. Assault Cannon | x1 | -6/Factory Adv. Weapon Cycler | x2 | -3/Research Repaired ---------- Lgt. Treads | 22% | -8/Materials Arm. Huge Wheel | 36% | -5/Factory Hvy. Linear Accelerator | 43% | -5/Factory Hvy. Linear Accelerator | 40% | -5/Factory | Broken Hvy. Reactive Plating | 34% | -5/Factory Adv. Remote Force Field | 5% | -3/Research Studied --------- Hvy. Assault Rifle | -8/Materials | Hacked Arm. Huge Wheel | -6/Factory | Hacked Remote Datajack | -6/Factory | Hacked Imp. Remote Datajack | -5/Factory | Hacked Wheel | -5/Factory | Hacked Lrn. Proton Cannon | -5/Factory | Hacked Hvy. Linear Accelerator | -3/Research | Hacked Imp. Plasma Cutter | -3/Research | Hacked Centrium Wheel | -2/Research | Hacked Alien Tech Used ----------------- Terrabomb Achievements -------------- None Challenges ------------ None Game ------ Seed MatterTeslaWings Manual? 0 Play Time 04:34:03 Cumulative 665.2 hours Start 2026.09.02 @ 02:45:23 End 2026.09.04 @ 01:12:43 Sessions 23 Manual Loads 0 Difficulty Rogue Special Mode None Game No. 592 Rogue 556 Adventurer 36 Explorer 0 Win Type - Total 8 Types 2/2/0/1/1/0/0/2/0/0 Lore% 86 Gallery% 75 Achievement% 69 Wizard Run 0 Options --------- Layout 1 ASCII 0 Keyboard 0 Movement Numpad Keybinds 0 Fullscreen 1 Font 48/Smallcaps Map View 50x35 Zoom Use 0% Tactical HUD 1 Map Filters NONE Filters NONE Steam 1 RUN: 2eb05fd4-941f-49a3-bb00-d2873d75f567